Workbook

Sheet INPUT
B1: Calucation of channeling half-angles
B2: enter parameters | C2: in yellow cells only
B6: Beam | I6: Target | M6: axis factor fa= | N6: =+'channeling cal'!G13 -> 1.732050808
Q7: plane factor fp=
B8: atomic number of projectile | C8: Z₁ | D8: 35 | E8: =+'channeling cal'!D5 -> Br | I8: atomic # of target | J8: Z₂ | K8: 13 | L8: =+'channeling cal'!D6 -> Al | Q8: =+'channeling cal'!G49 -> 0.5773502692
B9: Energy of projectile | C9: E | D9: 0.04 | E9: MeV | I9: atomic weight of target | J9: M2 | K9: =+'channeling cal'!C7 -> 26.98154 | L9: amu
I10: conventional cell size | J10: cc | L10: Ang | M10: =+'channeling cal'!C9 -> 4.05
I11: lattice | K11: =+'channeling cal'!C10 -> fcc
K12: uvw or hkl
I13: Miller indeces | K13: 111
I14: Room Temp | J14: T | K14: 293 | L14: K
I15: density | J15: rho | K15: =INDEX(tables!$K$8:$Q$99,K8,4) -> 2.7 | L15: g/cm3
B18: axial Ψ1/2 | C18: =+'channeling cal'!C36 -> 3.431230764 | D18: deg
B19: planar Ψ1/2 | C19: =+'channeling cal'!C62 -> 4.299129229 | D19: deg | G19: overlayer | H19: Zo | I19: 14 | J19: =+'channeling cal'!Q22 -> Si
H20: Mo | I20: =+'channeling cal'!P23 -> 28.0855 | J20: amu
B21: axial χ-min | C21: =+'channeling cal'!$P$40 -> 0.1831806018 | D21: w/overlayer | G21: density | H21: rho-o | I21: =+'channeling cal'!P25 -> 2.33 | J21: g/cm3
B22: axial χ-min | C22: =+'channeling cal'!P8 -> 0.1831806018 | D22: w/o overlayer | G22: thickness of overlayer | H22: t | I22: 1 | J22: A
B23: planar χ-min | C23: =+'channeling cal'!P49 -> 0.170423996 | D23: w/o overlayer

Sheet channeling cal
A2: axial channeling | C2: 1/2 angles | N2: Chi-mins
N3: AXIAL
A4: e^2 | C4: =0.0000144 -> 1.44e-05 | D4: MeV-A
A5: atomic number of projectile | B5: Z₁ | C5: =+INPUT!D8 -> 35 | D5: =INDEX(tables!$K$8:$Q$99,'channeling cal'!C5,1) -> Br | N5: Chi-min | O5: Lindhard | P5: =C54*C14*3.14159*(2*C23^2+C18^2) -> 0.08234687356 | R5: Lindhard
A6: atomic # of target | B6: Z₂ | C6: =+INPUT!K8 -> 13 | D6: =INDEX(tables!$K$8:$Q$99,'channeling cal'!C6,1) -> Al | R6: A15.7
A7: atomic weight of target | B7: M2 | C7: =INDEX(tables!$K$8:$Q$99,'channeling cal'!C6,3) -> 26.98154 | D7: amu | N7: Xh | P7: =126*$C$23/($C$36*$C$14) -> 0.5527328975 | R7: Barrett
A8: Energy of projectile | B8: E | C8: =+INPUT!D9 -> 0.04 | D8: MeV | N8: Chi-min | O8: Barrett | P8: =18.8*$C$54*$C$14*$C$23^2*SQRT(1+1/$P$7^2) -> 0.1831806018 | R8: A15.8
A9: conventional cell size | B9: cc | C9: =INDEX(tables!$K$8:$Q$99,$C$6,7)*10 -> 4.05 | D9: Ang | E9: p647 Black IBA Handbook
A10: lattice | C10: =INDEX(tables!$K$8:$Q$99,$C$6,5) -> fcc
C11: uvw or hkl | D11: u | E11: v | F11: w | N11: Chi-min | O11: Barrett | P11: =18.8*C54*C14*C23^2 -> 0.08861435599 | R11: A15.9 | V11: same as last at high E?
A12: Miller indeces | C12: =+INPUT!K13 -> 111 | D12: =INT(C12/100) -> 1 | E12: =INT((C12-100*D12)/10) -> 1 | F12: =+INT(C12-100*D12-10*E12) -> 1
A13: axis lattice factor | B13: fa | G13: 1.732050808 | N13: Xh | P13: =63*$C$23/($C$36*$C$14) -> 0.2763664487 | R13: Mayer
A14: lattice spacing | B14: d | C14: =+C9*G13 -> 7.014805771 | D14: Ang | N14: CHi-min | O14: Meyer | P14: =17*$C$54*$C$14*$C$23^2*SQRT(1+1/$P$7^2) -> 0.1656420335 | R14: p.654
A16: Following the EQUATIONSL FOR CHANNELING in the IBA Handbook, p645
C17: 0.4685*C6^-(1/3) | F17: 0.4685/(C5^(1/2)+C6^(1/2))^(2/3) | I17: This TF screening gives best results | N17: w/overlayer
A18: thomas fermi screening length | B18: a | C18: =0.4685*C6^-(1/3) -> 0.1992485385 | D18: Ang | F18: =0.4685/(C5^(1/2)+C6^(1/2))^(2/3) -> 0.1042882458 | I18: =(9*3.14^2/128)^0.333*0.53/(C5^0.666+C6^0.666)^0.5 -> 0.1165782396 | N18: overlayer
A19: Debye Temp | B19: theat-D | C19: =INDEX(tables!$K$8:$Q$99,$C$6,6) -> 390 | D19: K | E19: p647 Black IBA Handbook | O19: Z₁ | P19: =+C5 -> 35 | Q19: =INDEX(tables!$K$8:$Q$99,'channeling cal'!P19,1) -> Br
A20: Room Temp | B20: T | C20: =+INPUT!K14 -> 293 | D20: K | O20: Z₂ | P20: =+C6 -> 13 | Q20: =INDEX(tables!$K$8:$Q$99,'channeling cal'!P20,1) -> Al
A21: x"=Theta-D/T | B21: x" | C21: =C19/C20 -> 1.33105802 | O21: a | P21: =+I18 -> 0.1165782396 | Q21: A
A22: debye fn | B22: phi-D | C22: =+'debye calc'!C28 -> 0.7337782727 | O22: Zo | P22: =+INPUT!I19 -> 14 | Q22: =INDEX(tables!$K$8:$Q$99,'channeling cal'!P22,1) -> Si | R22: overlayer
A23: rms thermal amplitude | B23: u1 | C23: =+'debye calc'!B32 -> 0.1055869746 | D23: Ang | E23: fig. A15.1 | O23: Mo | P23: =INDEX(tables!$K$8:$Q$99,'channeling cal'!P22,3) -> 28.0855 | Q23: amu
O24: E | P24: =+C8 -> 0.04 | Q24: MeV
A25: characteristic axial channeling angle | B25: Ψ₁ | C25: =0.307*SQRT(C5*C6/C8/C14) -> 12.36249853 | D25: deg | O25: rho-o | P25: =INDEX(tables!$K$8:$Q$99,$P$22,4) -> 2.33 | Q25: g/cm3
C26: =C25/57.3 -> 0.2157504106 | D26: rad | O26: Nav | P26: 6.023e+23 | Q26: at/mole
O27: N | P27: =+P26*P25/P23 -> 4.996738531e+22 | Q27: atoms/cm3
A28: ratio of a to d | B28: a/d | C28: =I18/C14 -> 0.01661888346 | O28: N | P28: =P27*0.00000001^3 -> 0.04996738531 | Q28: atoms/A3
O29: a-o | P29: =(9*3.14^2/128)^0.333*0.53/(P19^0.666+P22^0.666)^0.5 -> 0.1155859213 | Q29: A
A30: parameter to use in Frs | B30: x' | C30: =1.2*C23/I18 -> 1.086861236 | O30: d | P30: =+C14 -> 7.014805771 | Q30: A
A31: adimentional axial channeling Fn | B31: Frs | C31: =+FRS!C39 -> 0.7952555988 | E31: fig.A15.2 | G31: best fits
G32: usedhere | H32: previous | O32: t | P32: =+INPUT!I22 -> 1 | Q32: A | R32: thickness of overlayer
A33: channeling 1/2 angle for Ψ₁<a/d | B33: Ψ1/2 | C33: =G33*C31*C25 -> 8.553271166 | D33: deg | F33: prefactor | G33: 0.87 | H33: 0.8 | O33: m | P33: =3.14159*P29^2*P28*P32 -> 0.002097229742
A34: channeling 1/2 angle for Ψ₁>a/d | B34: Ψ1/2 | C34: =G34*SQRT(I18*C25/C14) -> 3.431230764 | D34: deg | F34: prefactor | G34: 7.57 | H34: 7.57
O35: y | P35: =P29*P24/(2*P19*P22*C4) -> 0.3276244934
A36: channeling 1/2 angle to use | B36: Ψ1/2 | C36: =IF(C26<C28,C33,C34) -> 3.431230764 | D36: deg | O36: Ψ1/2 | P36: =+C37 -> 0.05988186324 | Q36: rad
C37: =+C36/57.3 -> 0.05988186324 | D37: rad | O37: theta-c | P37: =+P35*P36 -> 0.01961876511 | Q37: rad | R37: Mayer
C38: =(3*I18^2*C5*C6*144/C8/C14^3)^0.25 -> 3.729544527 | D38: deg | E38: kempshall uses third a
A39: planar channeling
O40: P(thc,m)= | P40: =IF(P33<20,IF(P37<4,MAX('P(th,m)'!B68,P8),1),1) -> 0.1831806018
A41: atomic number of projectile | B41: Z₁ | C41: =+C5 -> 35
A42: atomic # of target | B42: Z₂ | C42: 13
A43: atomic weight of target | B43: M2 | C43: 26.98154
A44: Energy of projectile | B44: E | C44: 0.04 | D44: MeV
A45: conventional cell size | B45: cc | C45: 4.05 | D45: Ang
A46: lattice | C46: fcc
A47: lattice type | D47: h | E47: k | F47: l | N47: PLANAR | P47: Chi-mins | Q47: =2*C18/C50 -> 0.170423996
A48: Miller indeces | C48: 111 | D48: =INT(C48/100) -> 1 | E48: =INT((C48-100*D48)/10) -> 1 | F48: =+INT(C48-100*D48-10*E48) -> 1
A49: plane lattice factor | B49: f' or fp | G49: 0.5773502692 | H49: lookup | N49: Chi-min | P49: =2*C18/C50 -> 0.170423996 | R49: lindhard
A50: avg atomic spacing between planes | B50: dp | C50: =+C45*G49 -> 2.33826859 | D50: Ang
A51: density | B51: rho | C51: =+INPUT!K15 -> 2.7 | D51: g/cm3
A52: Avagodros number | B52: Nav | C52: 6.023e+23 | D52: at/mole
A53: target atoms/cm3 | B53: N | C53: =+C52*C51/C43 -> 6.027120765e+22 | D53: atoms/cm3
C54: =C53*0.00000001^3 -> 0.06027120765 | D54: atoms/A3
A55: characteristic planer channeling angle | B55: Ψa | C55: =0.545*SQRT(C41*C42*C54*I18*C50/C44) -> 7.450460147 | D55: deg
A57: Fps parameters
B58: x' | C58: =1.6*C23/I18 -> 1.449148314
B59: y' | C59: =C50/I18 -> 20.05750472
A60: adimentional planar channeling function | B60: Fps | C60: =+FPS!B101 -> 0.88773644 | E60: figA15.3 | J60: best fits
J61: used here | K61: previous
A62: Planar channeling 1/2 angle | B62: Ψ1/2 | C62: =J62*C60*C55 -> 4.299129229 | D62: deg | G62: 0.71 | I62: prefactor | J62: 0.65 | K62: 0.72

Sheet debye calc
A1: Calculation of u1 - 1D vibrational amplitude
A3: Parameterization of Debye Function
B4: a | C4: 1
B5: b | C5: 4.3
A21: Debye fn. PhiD=exp(-x"/4.3)
A23: Theta-D | B23: =+'channeling cal'!C19 -> 390 | C23: K | D23: p647 Black IBA Handbook
A24: T | B24: =+'channeling cal'!C20 -> 293 | C24: K | D24: room temp
A25: x"=Theta-D/T
A26: x" | B26: =B23/B24 -> 1.33105802
B27: x"
A28: debye fn | B28: =+B26 -> 1.33105802 | C28: =$C$4*EXP(-B28/$C$5) -> 0.7337782727
A30: M2 | B30: =+'channeling cal'!C7 -> 26.98154
A32: u1 | B32: =12.1*((C28/B26+1/4)*(B30*B23)^-1)^0.5 -> 0.1055869746 | C32: A | D32: eq A15.2

Sheet FPS
A1: Parameterization of Fps
A41: so the y intercept FPSo = 1.27(1-exp(-(y'^.76/3.0))
A56: FPS=FPSo(exp(-(x'^p)/a)
A57: a=4.3*(1-exp(-(y'^1.1)/12))
A58: p=0.4*exp(-y'/12)+0.85
A60: y'= | B60: =+'channeling cal'!C59 -> 20.05750472
A61: FPSo= | B61: =1.27*(1-EXP(-(B60^0.76)/3)) -> 1.221023727
A62: a fit | B62: 4.3
A63: p fit | B63: 0.85
A65: x'
B66: FPS
A67: 0 | B67: =+$B$44*EXP(-(A67^$B$46)/$B$45) -> 
A68: 0.1 | B68: =+$B$44*EXP(-(A68^$B$46)/$B$45) -> 
A69: 0.2 | B69: =+$B$44*EXP(-(A69^$B$46)/$B$45) -> 
A70: 0.3
A71: 0.4
A72: 0.5
A73: 0.6
A74: 0.7
A75: 0.8
A76: 0.9
A77: 1
A78: 1.1
A79: 1.2
A80: 1.3
A81: 1.4
A82: 1.5
A83: 1.6
A84: 1.7
A85: 1.8
A86: 1.9
A87: 2
A88: 2.1
A89: 2.2 | B89: =+$B$44*EXP(-(A89^$B$46)/$B$45) -> 
A90: 2.3
A91: 2.4
A92: 2.5
A93: 2.6
A94: 2.7
A95: 2.8
A96: 2.9
A97: 3
A100: x' | B100: Fps
A101: =+'channeling cal'!C58 -> 1.449148314 | B101: =+$B$61*EXP(-(A101^$B$63)/$B$62) -> 0.88773644

Sheet FRS
A1: Parameterization of FRS(x')
B3: a | C3: 1.9
B4: b | C4: 1.2
B5: c | C5: 0.53
B38: x' | C38: Frs
B39: =+'channeling cal'!C30 -> 1.086861236 | C39: =$C$3*EXP(-(B39^$C$5)/$C$4) -> 0.7952555988

Sheet P(th,m)
A1: Parameterization of P(th,m)
A3: P=fexp(-(thc^pa)/a)+(1-f)exp(-thc^pb/b)
A5: so the y intercept P=1
A7: m | B7: 5 | M7: power law fits
A8: f | B8: 0.92 | C8: f | M8: 0.318 | N8: 0.391
A9: a | B9: 35 | C9: a | M9: 1.63 | N9: 0.824
A10: pa | B10: 2.2 | C10: pa | M10: 0.974 | N10: 0.288
A11: b | B11: 50 | C11: b | M11: 0.671 | N11: 1.242
A12: pb | B12: 5 | C12: pb | M12: 1.646 | N12: 0.372
C13: f-fit
C14: a -fit | M14: 1.17 | N14: 0.41
A15: m | B15: =+'channeling cal'!P33 -> 0.002097229742 | C15: pa-fit | M15: 0.16 | N15: 1.8
A16: f-fit | B16: =+$M8*B$15^$N8 -> 0.02852270493 | C16: b-fit | M16: 0.44 | N16: 0.64
A17: a -fit | B17: =+$M$14*B15^$N$14+$M$15*B15^$N$15 -> 0.0933408961 | C17: pb-fit | M17: 0.048 | N17: 2.32
A18: pa-fit | B18: =+$M10*B$15^$N10 -> 0.1648895023 | C18: para | M18: 0.44 | N18: 0.64
A19: b-fit | B19: =+$M$16*B15^$N$16+$M$17*B15^$N$17 -> 0.008497821827 | M19: 0.048 | N19: 2.32
A20: pb-fit | B20: =+$M12*B$15^$N12 -> 0.1659900844
A23: thc
B24: P
A25: 0 | B25: =+B$17*EXP(-($A25^B$18)/B$16)+(1-B$17)*EXP(-($A25^B$20)/B$19) -> 1
A26: 0.1 | B26: =+B$16*EXP(-($A26^B$18)/B$17)+(1-B$16)*EXP(-($A26^B$20)/B$19) -> 1.871939536e-05
A27: 0.2 | B27: =+B$16*EXP(-($A27^B$18)/B$17)+(1-B$16)*EXP(-($A27^B$20)/B$19) -> 7.707361883e-06
A28: 0.3 | B28: 4.367023737e-06
A29: 0.4 | B29: 2.850080056e-06
A30: 0.5 | B30: 2.018028619e-06
A31: 0.6 | B31: 1.507522932e-06
A32: 0.7 | B32: 1.169931314e-06
A33: 0.8 | B33: 9.343203778e-07
A34: 0.9 | B34: 7.630384989e-07
A35: 1 | B35: 6.344721428e-07
A36: 1.1 | B36: 5.354433602e-07
A37: 1.2 | B37: 4.575227931e-07
A38: 1.3 | B38: 3.951034618e-07
A39: 1.4 | B39: 3.443323372e-07
A40: 1.5 | B40: 3.024877371e-07
A41: 1.6 | B41: 2.676011791e-07
A42: 1.7 | B42: 2.382194603e-07
A43: 1.8 | B43: 2.13250336e-07
A44: 1.9 | B44: 1.918597286e-07
A45: 2 | B45: 1.734016412e-07
A46: 2.1 | B46: 1.573693672e-07
A47: 2.2 | B47: 1.433608903e-07
A48: 2.3 | B48: 1.310539339e-07
A49: 2.4 | B49: 1.201876964e-07
A50: 2.5 | B50: 1.105492951e-07
A51: 2.6 | B51: 1.019635792e-07
A52: 2.7 | B52: 9.428538491e-08
A53: 2.8 | B53: 8.739358606e-08
A54: 2.9 | B54: 8.118647788e-08
A55: 3 | B55: 7.557816353e-08
A56: 3.1 | B56: 7.049570136e-08
A57: 3.2 | B57: 6.587683505e-08
A58: 3.3 | B58: 6.166817443e-08
A59: 3.4 | B59: 5.782372736e-08
A60: 3.5 | B60: 5.430370736e-08
A61: 3.6 | B61: 5.10735593e-08
A62: 3.7 | B62: 4.810315878e-08
A63: 3.8 | B63: 4.536615065e-08
A64: 3.9 | B64: 4.283939973e-08
A65: 4 | B65: 4.050253253e-08
A67: thc | B67: P(thc,m)
A68: =+'channeling cal'!P37 -> 0.01961876511 | B68: =+B$16*EXP(-($A68^B$18)/B$17)+(1-B$16)*EXP(-($A68^B$20)/B$19) -> 0.0001051749143

Sheet stereographs

Sheet tables
A2: symbol | B2: Z2 | C2: M2 | D2: g/cm3 | E2: Structure | F2: Debye Temp | G2: Lattice constant | M2: amu | N2: g/cm3
A3: =INDEX($K$8:$N$99,B3,1) -> C | B3: 6 | C3: =INDEX($K$8:$N$99,B3,3) -> 12.011 | D3: =INDEX($K$8:$N$99,B3,4) -> 3.51 | E3: diamond | F3: 2000 | G3: 0.3567 | K3: target | L3: target | M3: target | N3: target
A4: =INDEX($K$8:$N$99,B4,1) -> Al | B4: 13 | C4: =INDEX($K$8:$N$99,B4,3) -> 26.98154 | D4: =INDEX($K$8:$N$99,B4,4) -> 2.7 | E4: fcc | F4: 390 | G4: 0.405 | K4: ___________________________________________________________________________________
A5: Si | B5: 14 | C5: 28.0855 | D5: 2.33 | E5: diamond | F5: 543 | G5: 0.5431 | K5: element | L5: Z | M5: mass | N5: density | O5: structure | P5: Debye T | Q5: Lattice constant
A6: V | B6: 23 | C6: 50.9415 | D6: 5.8 | E6: bcc | F6: 360 | G6: 0.3024 | K6: ___________________________________________________________________________________
A7: Cr | B7: 24 | C7: 51.996 | D7: 7.19 | E7: bcc | F7: 485 | G7: 0.2884
A8: Fe | B8: 26 | C8: 55.847 | D8: 7.86 | E8: bcc | F8: 420 | G8: 0.2867 | K8: H | L8: 1 | M8: 1.0079 | N8: 0.0899
A9: Ni | B9: 28 | C9: 58.7 | D9: 8.9 | E9: fcc | F9: 425 | G9: 0.3524 | K9: He | L9: 2 | M9: 4.0026 | N9: 0.1787
A10: Cu | B10: 29 | C10: 63.546 | D10: 8.96 | E10: fcc | F10: 315 | G10: 0.3615 | K10: Li | L10: 3 | M10: 6.941 | N10: 0.53
A11: Ge | B11: 32 | C11: 72.59 | D11: 5.32 | E11: diamond | F11: 290 | G11: 0.5657 | K11: Be | L11: 4 | M11: 9.01216 | N11: 1.85
A12: Nb | B12: 41 | C12: 92.9064 | D12: 8.55 | E12: bcc | F12: 275 | G12: 0.33 | K12: B | L12: 5 | M12: 10.81 | N12: 2.34
A13: Mo | B13: 42 | C13: 95.94 | D13: 10.2 | E13: bcc | F13: 380 | G13: 0.3147 | K13: C | L13: 6 | M13: 12.011 | N13: 3.51 | O13: diamond | P13: 2000 | Q13: 0.3567
A14: Rh | B14: 45 | C14: 102.9055 | D14: 12.4 | E14: fcc | F14: 340 | G14: 0.3803 | K14: N | L14: 7 | M14: 14.0067 | N14: 1.251
A15: Pd | B15: 46 | C15: 106.4 | D15: 12 | E15: fcc | F15: 275 | G15: 0.389 | K15: O | L15: 8 | M15: 15.9994 | N15: 1.429
A16: Ag | B16: 47 | C16: 107.868 | D16: 10.5 | E16: fcc | F16: 215 | G16: 0.4086 | K16: F | L16: 9 | M16: 18.998403 | N16: 1.696
A17: Ta | B17: 73 | C17: 180.9479 | D17: 16.6 | E17: bcc | F17: 245 | G17: 0.3306 | K17: Ne | L17: 10 | M17: 20.179 | N17: 0.901
A18: W | B18: 74 | C18: 183.85 | D18: 19.3 | E18: bcc | F18: 310 | G18: 0.3165 | K18: Na | L18: 11 | M18: 22.98977 | N18: 0.97
A19: Pt | B19: 78 | C19: 195.09 | D19: 21.4 | E19: fcc | F19: 225 | G19: 0.3923 | K19: Mg | L19: 12 | M19: 24.305 | N19: 1.74
A20: Au | B20: 79 | C20: 196.9665 | D20: 19.3 | E20: fcc | F20: 170 | G20: 0.4078 | K20: Al | L20: 13 | M20: 26.98154 | N20: 2.7 | O20: fcc | P20: 390 | Q20: 0.405
A21: Pb | B21: 82 | C21: 207.2 | D21: 11.4 | E21: fcc | F21: 88 | G21: 0.4951 | K21: Si | L21: 14 | M21: 28.0855 | N21: 2.33 | O21: diamond | P21: 543 | Q21: 0.5431
K22: P | L22: 15 | M22: 30.97376 | N22: 1.82
K23: S | L23: 16 | M23: 32.06 | N23: 2.07
K24: Cl | L24: 17 | M24: 35.453 | N24: 3.17
K25: Ar | L25: 18 | M25: 39.948 | N25: 1.784
K26: K | L26: 19 | M26: 39.0983 | N26: 0.86
K27: Ca | L27: 20 | M27: 40.08 | N27: 1.55
K28: Sc | L28: 21 | M28: 44.9559 | N28: 3
K29: Ti | L29: 22 | M29: 47.9 | N29: 4.5
K30: V | L30: 23 | M30: 50.9415 | N30: 5.8 | O30: bcc | P30: 360 | Q30: 0.3024
K31: Cr | L31: 24 | M31: 51.996 | N31: 7.19 | O31: bcc | P31: 485 | Q31: 0.2884
K32: Mn | L32: 25 | M32: 54.938 | N32: 7.43
K33: Fe | L33: 26 | M33: 55.847 | N33: 7.86 | O33: bcc | P33: 420 | Q33: 0.2867
K34: Co | L34: 27 | M34: 58.9332 | N34: 8.9
K35: Ni | L35: 28 | M35: 58.7 | N35: 8.9 | O35: fcc | P35: 425 | Q35: 0.3524
K36: Cu | L36: 29 | M36: 63.546 | N36: 8.96 | O36: fcc | P36: 315 | Q36: 0.3615
K37: Zn | L37: 30 | M37: 65.38 | N37: 7.14
K38: Ga | L38: 31 | M38: 69.72 | N38: 5.91
K39: Ge | L39: 32 | M39: 72.59 | N39: 5.32 | O39: diamond | P39: 290 | Q39: 0.5657
K40: As | L40: 33 | M40: 74.9216 | N40: 5.72
K41: Se | L41: 34 | M41: 78.96 | N41: 4.8
K42: Br | L42: 35 | M42: 79.904 | N42: 3.12
K43: Kr | L43: 36 | M43: 83.8 | N43: 3.74
K44: Rb | L44: 37 | M44: 85.4678 | N44: 1.53
K45: Sr | L45: 38 | M45: 87.62 | N45: 2.6
K46: Y | L46: 39 | M46: 88.9059 | N46: 4.5
K47: Zr | L47: 40 | M47: 91.22 | N47: 6.49
K48: Nb | L48: 41 | M48: 92.9064 | N48: 8.55 | O48: bcc | P48: 275 | Q48: 0.33
K49: Mo | L49: 42 | M49: 95.94 | N49: 10.2 | O49: bcc | P49: 380 | Q49: 0.3147
K50: Tc | L50: 43 | M50: 98 | N50: 11.5
K51: Ru | L51: 44 | M51: 101.07 | N51: 12.2
K52: Rh | L52: 45 | M52: 102.9055 | N52: 12.4 | O52: fcc | P52: 340 | Q52: 0.3803
K53: Pd | L53: 46 | M53: 106.4 | N53: 12 | O53: fcc | P53: 275 | Q53: 0.389
K54: Ag | L54: 47 | M54: 107.868 | N54: 10.5 | O54: fcc | P54: 215 | Q54: 0.4086
K55: Cd | L55: 48 | M55: 112.41 | N55: 8.65
K56: In | L56: 49 | M56: 114.82 | N56: 7.31
K57: Sn | L57: 50 | M57: 118.69 | N57: 7.3
K58: Sb | L58: 51 | M58: 121.75 | N58: 6.68
K59: Te | L59: 52 | M59: 127.6 | N59: 6.24
K60: I | L60: 53 | M60: 126.9045 | N60: 4.92
K61: Xe | L61: 54 | M61: 131.3 | N61: 5.89
K62: Cs | L62: 55 | M62: 132.9054 | N62: 1.87
K63: Ba | L63: 56 | M63: 137.33 | N63: 3.5
K64: La | L64: 57 | M64: 138.9055 | N64: 6.7
K65: Ce | L65: 58 | M65: 140.12 | N65: 6.78
K66: Pr | L66: 59 | M66: 140.9077 | N66: 6.77
K67: Nd | L67: 60 | M67: 144.24 | N67: 7
K68: Pm | L68: 61 | M68: 145 | N68: 6.475
K69: Sm | L69: 62 | M69: 150.4 | N69: 7.54
K70: Eu | L70: 63 | M70: 151.96 | N70: 5.26
K71: Gd | L71: 64 | M71: 157.25 | N71: 7.89
K72: Tb | L72: 65 | M72: 158.9254 | N72: 8.27
K73: Dy | L73: 66 | M73: 162.5 | N73: 8.54
K74: Ho | L74: 67 | M74: 164.9304 | N74: 8.8
K75: Er | L75: 68 | M75: 167.26 | N75: 9.05
K76: Tm | L76: 69 | M76: 168.9342 | N76: 9.33
K77: Yb | L77: 70 | M77: 173.04 | N77: 6.98
K78: Lu | L78: 71 | M78: 174.967 | N78: 9.84
K79: Hf | L79: 72 | M79: 178.49 | N79: 13.1
K80: Ta | L80: 73 | M80: 180.9479 | N80: 16.6 | O80: bcc | P80: 245 | Q80: 0.3306
K81: W | L81: 74 | M81: 183.85 | N81: 19.3 | O81: bcc | P81: 310 | Q81: 0.3165
K82: Re | L82: 75 | M82: 186.207 | N82: 21
K83: Os | L83: 76 | M83: 190.2 | N83: 22.4
K84: Ir | L84: 77 | M84: 192.22 | N84: 22.5
K85: Pt | L85: 78 | M85: 195.09 | N85: 21.4 | O85: fcc | P85: 225 | Q85: 0.3923
K86: Au | L86: 79 | M86: 196.9665 | N86: 19.3 | O86: fcc | P86: 170 | Q86: 0.4078
K87: Hg | L87: 80 | M87: 200.59 | N87: 13.53
K88: Tl | L88: 81 | M88: 204.37 | N88: 11.85
K89: Pb | L89: 82 | M89: 207.2 | N89: 11.4 | O89: fcc | P89: 88 | Q89: 0.4951
K90: Bi | L90: 83 | M90: 208.9804 | N90: 9.8
K91: Po | L91: 84 | M91: 209 | N91: 9.4
K92: At | L92: 85 | M92: 210
K93: Rn | L93: 86 | M93: 222 | N93: 9.91
K94: Fr | L94: 87 | M94: 223
K95: Ra | L95: 88 | M95: 226.0254 | N95: 5
K96: Ac | L96: 89 | M96: 227.0278 | N96: 10.07
K97: Th | L97: 90 | M97: 232.0381 | N97: 11.7
K98: Pa | L98: 91 | M98: 231.0359 | N98: 15.4
K99: U | L99: 92 | M99: 238.029 | N99: 18.9

Sheet bcc atoms
A1: bcc
BI10: 5 | BJ10: -5 | BK10: 4
M14: atoms in | N14: axis factor | O14: plane factor
J15: h | K15: k | L15: l | M15: row | O15: if sum odd 1/2sqrtsumsquares, even 1/sqrtsumsquares
I16: 1 | J16: 0 | K16: 0 | L16: 0 | M16: 0 | P16: sum odd?
I17: 2 | J17: 0 | K17: 0 | L17: 1 | M17: 1 | N17: =SQRT(J17^2+K17^2+L17^2)/M17 -> 1 | O17: =IF(P17,1/2/SQRT(J17^2+K17^2+L17^2),1/SQRT(J17^2+K17^2+L17^2)) -> 0.5 | P17: =ISODD(J17+K17+L17) -> TRUE
I18: 3 | J18: 0 | K18: 1 | L18: 0 | M18: 1 | N18: 1 | O18: 0.5 | P18: TRUE
I19: 4 | J19: 0 | K19: 1 | L19: 1 | M19: 1 | N19: =SQRT(J19^2+K19^2+L19^2)/M19 -> 1.414213562 | O19: =IF(P19,1/2/SQRT(J19^2+K19^2+L19^2),1/SQRT(J19^2+K19^2+L19^2)) -> 0.7071067812 | P19: FALSE
I20: 5 | J20: 0 | K20: 1 | L20: 2 | M20: 1 | N20: 2.236067977 | O20: 0.2236067977 | P20: TRUE
I21: 6 | J21: 0 | K21: 1 | L21: 3 | M21: 1 | N21: 3.16227766 | O21: 0.316227766 | P21: FALSE
I22: 7 | J22: 0 | K22: 1 | L22: 4 | M22: 1 | N22: 4.123105626 | O22: 0.1212678125 | P22: TRUE
I23: 8 | J23: 0 | K23: 1 | L23: 5 | M23: 1 | N23: =SQRT(J23^2+K23^2+L23^2)/M23 -> 5.099019514 | O23: 0.1961161351 | P23: FALSE
I24: 9 | J24: 0 | K24: 2 | L24: 1 | M24: 1 | N24: 2.236067977 | O24: 0.2236067977 | P24: TRUE
I25: 10 | J25: 0 | K25: 2 | L25: 3 | M25: 1 | N25: =SQRT(J25^2+K25^2+L25^2)/M25 -> 3.605551275 | O25: 0.1386750491 | P25: TRUE
I26: 11 | J26: 0 | K26: 2 | L26: 5 | M26: 1 | N26: 5.385164807 | O26: 0.09284766909 | P26: TRUE
I27: 12 | J27: 0 | K27: 3 | L27: 1 | M27: 1 | N27: 3.16227766 | O27: 0.316227766 | P27: FALSE
I28: 13 | J28: 0 | K28: 3 | L28: 2 | M28: 1 | N28: 3.605551275 | O28: 0.1386750491 | P28: TRUE
I29: 14 | J29: 0 | K29: 3 | L29: 4 | M29: 1 | N29: 5 | O29: 0.1 | P29: TRUE
I30: 15 | J30: 0 | K30: 3 | L30: 5 | M30: 1 | N30: 5.830951895 | O30: 0.1714985851 | P30: FALSE
I31: 16 | J31: 0 | K31: 4 | L31: 1 | M31: 1 | N31: 4.123105626 | O31: 0.1212678125 | P31: TRUE
I32: 17 | J32: 0 | K32: 4 | L32: 3 | M32: 1 | N32: 5 | O32: 0.1 | P32: TRUE
I33: 18 | J33: 0 | K33: 4 | L33: 5 | M33: 1 | N33: 6.403124237 | O33: 0.07808688094 | P33: TRUE
I34: 19 | J34: 0 | K34: 5 | L34: 1 | M34: 1 | N34: 5.099019514 | O34: 0.1961161351 | P34: FALSE
I35: 20 | J35: 0 | K35: 5 | L35: 2 | M35: 1 | N35: 5.385164807 | O35: 0.09284766909 | P35: TRUE
I36: 21 | J36: 0 | K36: 5 | L36: 3 | M36: 1 | N36: 5.830951895 | O36: 0.1714985851 | P36: FALSE
I37: 22 | J37: 0 | K37: 5 | L37: 4 | M37: 1 | N37: 6.403124237 | O37: 0.07808688094 | P37: TRUE
I38: 23 | J38: 1 | K38: 0 | L38: 0 | M38: 1 | N38: 1 | O38: 0.5 | P38: TRUE
I39: 24 | J39: 1 | K39: 0 | L39: 1 | M39: 1 | N39: 1.414213562 | O39: 0.7071067812 | P39: FALSE
I40: 25 | J40: 1 | K40: 0 | L40: 2 | M40: 1 | N40: 2.236067977 | O40: 0.2236067977 | P40: TRUE
I41: 26 | J41: 1 | K41: 0 | L41: 3 | M41: 1 | N41: 3.16227766 | O41: 0.316227766 | P41: FALSE
I42: 27 | J42: 1 | K42: 0 | L42: 4 | M42: 1 | N42: 4.123105626 | O42: 0.1212678125 | P42: TRUE
I43: 28 | J43: 1 | K43: 0 | L43: 5 | M43: 1 | N43: 5.099019514 | O43: 0.1961161351 | P43: FALSE
I44: 29 | J44: 1 | K44: 1 | L44: 0 | M44: 1 | N44: 1.414213562 | O44: 0.7071067812 | P44: FALSE
I45: 30 | J45: 1 | K45: 1 | L45: 1 | M45: 2 | N45: 0.8660254038 | O45: 0.2886751346 | P45: TRUE
I46: 31 | J46: 1 | K46: 1 | L46: 2 | M46: 1 | N46: 2.449489743 | O46: 0.4082482905 | P46: FALSE
I47: 32 | J47: 1 | K47: 1 | L47: 3 | M47: 1 | N47: 3.31662479 | O47: 0.1507556723 | P47: TRUE
I48: 33 | J48: 1 | K48: 1 | L48: 4 | M48: 1 | N48: 4.242640687 | O48: 0.2357022604 | P48: FALSE
I49: 34 | J49: 1 | K49: 1 | L49: 5 | M49: 2 | N49: 2.598076211 | O49: 0.09622504486 | P49: TRUE
I50: 35 | J50: 1 | K50: 2 | L50: 0 | M50: 1 | N50: 2.236067977 | O50: 0.2236067977 | P50: TRUE
I51: 36 | J51: 1 | K51: 2 | L51: 1 | M51: 1 | N51: 2.449489743 | O51: 0.4082482905 | P51: FALSE
I52: 37 | J52: 1 | K52: 2 | L52: 2 | M52: 1 | N52: 3 | O52: 0.1666666667 | P52: TRUE
I53: 38 | J53: 1 | K53: 2 | L53: 3 | M53: 1 | N53: 3.741657387 | O53: 0.2672612419 | P53: FALSE
I54: 39 | J54: 1 | K54: 2 | L54: 4 | M54: 1 | N54: 4.582575695 | O54: 0.1091089451 | P54: TRUE
I55: 40 | J55: 1 | K55: 2 | L55: 5 | M55: 1 | N55: 5.477225575 | O55: 0.1825741858 | P55: FALSE
I56: 41 | J56: 1 | K56: 3 | L56: 0 | M56: 1 | N56: 3.16227766 | O56: 0.316227766 | P56: FALSE
I57: 42 | J57: 1 | K57: 3 | L57: 1 | M57: 2 | N57: 1.658312395 | O57: 0.1507556723 | P57: TRUE
I58: 43 | J58: 1 | K58: 3 | L58: 2 | M58: 1 | N58: 3.741657387 | O58: 0.2672612419 | P58: FALSE
I59: 44 | J59: 1 | K59: 3 | L59: 3 | M59: 2 | N59: 2.179449472 | O59: 0.1147078669 | P59: TRUE
I60: 45 | J60: 1 | K60: 3 | L60: 4 | M60: 1 | N60: 5.099019514 | O60: 0.1961161351 | P60: FALSE
I61: 46 | J61: 1 | K61: 3 | L61: 5 | M61: 2 | N61: 2.958039892 | O61: 0.08451542547 | P61: TRUE
I62: 47 | J62: 1 | K62: 4 | L62: 0 | M62: 1 | N62: 4.123105626 | O62: 0.1212678125 | P62: TRUE
I63: 48 | J63: 1 | K63: 4 | L63: 1 | M63: 1 | N63: 4.242640687 | O63: 0.2357022604 | P63: FALSE
I64: 49 | J64: 1 | K64: 4 | L64: 2 | M64: 1 | N64: 4.582575695 | O64: 0.1091089451 | P64: TRUE
I65: 50 | J65: 1 | K65: 4 | L65: 3 | M65: 1 | N65: 5.099019514 | O65: 0.1961161351 | P65: FALSE
I66: 51 | J66: 1 | K66: 4 | L66: 4 | M66: 1 | N66: 5.744562647 | O66: 0.08703882798 | P66: TRUE
I67: 52 | J67: 1 | K67: 4 | L67: 5 | M67: 1 | N67: 6.480740698 | O67: 0.15430335 | P67: FALSE
I68: 53 | J68: 1 | K68: 5 | L68: 0 | M68: 1 | N68: 5.099019514 | O68: 0.1961161351 | P68: FALSE
I69: 54 | J69: 1 | K69: 5 | L69: 1 | M69: 2 | N69: 2.598076211 | O69: 0.09622504486 | P69: TRUE
I70: 55 | J70: 1 | K70: 5 | L70: 2 | M70: 1 | N70: 5.477225575 | O70: 0.1825741858 | P70: FALSE
I71: 56 | J71: 1 | K71: 5 | L71: 3 | M71: 2 | N71: 2.958039892 | O71: 0.08451542547 | P71: TRUE
I72: 57 | J72: 1 | K72: 5 | L72: 4 | M72: 1 | N72: 6.480740698 | O72: 0.15430335 | P72: FALSE
I73: 58 | J73: 1 | K73: 5 | L73: 5 | M73: 2 | N73: 3.570714214 | O73: 0.0700140042 | P73: TRUE
I74: 59 | J74: 2 | K74: 0 | L74: 1 | M74: 1 | N74: 2.236067977 | O74: 0.2236067977 | P74: TRUE
I75: 60 | J75: 2 | K75: 0 | L75: 3 | M75: 1 | N75: 3.605551275 | O75: 0.1386750491 | P75: TRUE
I76: 61 | J76: 2 | K76: 0 | L76: 5 | M76: 1 | N76: 5.385164807 | O76: 0.09284766909 | P76: TRUE
I77: 62 | J77: 2 | K77: 1 | L77: 0 | M77: 1 | N77: 2.236067977 | O77: 0.2236067977 | P77: TRUE
I78: 63 | J78: 2 | K78: 1 | L78: 1 | M78: 1 | N78: 2.449489743 | O78: 0.4082482905 | P78: FALSE
I79: 64 | J79: 2 | K79: 1 | L79: 2 | M79: 1 | N79: 3 | O79: 0.1666666667 | P79: TRUE
I80: 65 | J80: 2 | K80: 1 | L80: 3 | M80: 1 | N80: 3.741657387 | O80: 0.2672612419 | P80: FALSE
I81: 66 | J81: 2 | K81: 1 | L81: 4 | M81: 1 | N81: =SQRT(J81^2+K81^2+L81^2)/M81 -> 4.582575695 | O81: =IF(P81,1/2/SQRT(J81^2+K81^2+L81^2),1/SQRT(J81^2+K81^2+L81^2)) -> 0.1091089451 | P81: =ISODD(J81+K81+L81) -> TRUE
I82: 67 | J82: 2 | K82: 1 | L82: 5 | M82: 1 | N82: 5.477225575 | O82: 0.1825741858 | P82: FALSE
I83: 68 | J83: 2 | K83: 2 | L83: 1 | M83: 1 | N83: 3 | O83: 0.1666666667 | P83: TRUE
I84: 69 | J84: 2 | K84: 2 | L84: 3 | M84: 1 | N84: 4.123105626 | O84: 0.1212678125 | P84: TRUE
I85: 70 | J85: 2 | K85: 2 | L85: 5 | M85: 1 | N85: 5.744562647 | O85: 0.08703882798 | P85: TRUE
I86: 71 | J86: 2 | K86: 3 | L86: 0 | M86: 1 | N86: 3.605551275 | O86: 0.1386750491 | P86: TRUE
I87: 72 | J87: 2 | K87: 3 | L87: 1 | M87: 1 | N87: 3.741657387 | O87: 0.2672612419 | P87: FALSE
I88: 73 | J88: 2 | K88: 3 | L88: 2 | M88: 1 | N88: 4.123105626 | O88: 0.1212678125 | P88: TRUE
I89: 74 | J89: 2 | K89: 3 | L89: 3 | M89: 1 | N89: 4.69041576 | O89: 0.2132007164 | P89: FALSE
I90: 75 | J90: 2 | K90: 3 | L90: 4 | M90: 1 | N90: 5.385164807 | O90: 0.09284766909 | P90: TRUE
I91: 76 | J91: 2 | K91: 3 | L91: 5 | M91: 1 | N91: 6.164414003 | O91: 0.1622214211 | P91: FALSE
I92: 77 | J92: 2 | K92: 4 | L92: 1 | M92: 1 | N92: 4.582575695 | O92: 0.1091089451 | P92: TRUE
I93: 78 | J93: 2 | K93: 4 | L93: 3 | M93: 1 | N93: 5.385164807 | O93: 0.09284766909 | P93: TRUE
I94: 79 | J94: 2 | K94: 4 | L94: 5 | M94: 1 | N94: 6.708203932 | O94: 0.07453559925 | P94: TRUE
I95: 80 | J95: 2 | K95: 5 | L95: 0 | M95: 1 | N95: 5.385164807 | O95: 0.09284766909 | P95: TRUE
I96: 81 | J96: 2 | K96: 5 | L96: 1 | M96: 1 | N96: 5.477225575 | O96: 0.1825741858 | P96: FALSE
I97: 82 | J97: 2 | K97: 5 | L97: 2 | M97: 1 | N97: 5.744562647 | O97: 0.08703882798 | P97: TRUE
I98: 83 | J98: 2 | K98: 5 | L98: 3 | M98: 1 | N98: 6.164414003 | O98: 0.1622214211 | P98: FALSE
I99: 84 | J99: 2 | K99: 5 | L99: 4 | M99: 1 | N99: 6.708203932 | O99: 0.07453559925 | P99: TRUE
I100: 85 | J100: 2 | K100: 5 | L100: 5 | M100: 1 | N100: 7.348469228 | O100: 0.1360827635 | P100: FALSE
I101: 86 | J101: 3 | K101: 0 | L101: 1 | M101: 1 | N101: 3.16227766 | O101: 0.316227766 | P101: FALSE
I102: 87 | J102: 3 | K102: 0 | L102: 2 | M102: 1 | N102: 3.605551275 | O102: 0.1386750491 | P102: TRUE
I103: 88 | J103: 3 | K103: 0 | L103: 4 | M103: 1 | N103: 5 | O103: 0.1 | P103: TRUE
I104: 89 | J104: 3 | K104: 0 | L104: 5 | M104: 1 | N104: 5.830951895 | O104: 0.1714985851 | P104: FALSE
I105: 90 | J105: 3 | K105: 1 | L105: 0 | M105: 1 | N105: 3.16227766 | O105: 0.316227766 | P105: FALSE
I106: 91 | J106: 3 | K106: 1 | L106: 1 | M106: 2 | N106: 1.658312395 | O106: 0.1507556723 | P106: TRUE
I107: 92 | J107: 3 | K107: 1 | L107: 2 | M107: 1 | N107: 3.741657387 | O107: 0.2672612419 | P107: FALSE
I108: 93 | J108: 3 | K108: 1 | L108: 3 | M108: 1 | N108: 4.358898944 | O108: 0.1147078669 | P108: TRUE
I109: 94 | J109: 3 | K109: 1 | L109: 4 | M109: 1 | N109: 5.099019514 | O109: 0.1961161351 | P109: FALSE
I110: 95 | J110: 3 | K110: 1 | L110: 5 | M110: 2 | N110: 2.958039892 | O110: 0.08451542547 | P110: TRUE
I111: 96 | J111: 3 | K111: 2 | L111: 0 | M111: 1 | N111: 3.605551275 | O111: 0.1386750491 | P111: TRUE
I112: 97 | J112: 3 | K112: 2 | L112: 1 | M112: 1 | N112: 3.741657387 | O112: 0.2672612419 | P112: FALSE
I113: 98 | J113: 3 | K113: 2 | L113: 2 | M113: 1 | N113: 4.123105626 | O113: 0.1212678125 | P113: TRUE
I114: 99 | J114: 3 | K114: 2 | L114: 3 | M114: 1 | N114: 4.69041576 | O114: 0.2132007164 | P114: FALSE
I115: 100 | J115: 3 | K115: 2 | L115: 4 | M115: 1 | N115: 5.385164807 | O115: 0.09284766909 | P115: TRUE
I116: 101 | J116: 3 | K116: 2 | L116: 5 | M116: 1 | N116: 6.164414003 | O116: 0.1622214211 | P116: FALSE
I117: 102 | J117: 3 | K117: 3 | L117: 1 | M117: 2 | N117: 2.179449472 | O117: 0.1147078669 | P117: TRUE
I118: 103 | J118: 3 | K118: 3 | L118: 2 | M118: 1 | N118: 4.69041576 | O118: 0.2132007164 | P118: FALSE
I119: 104 | J119: 3 | K119: 3 | L119: 4 | M119: 1 | N119: 5.830951895 | O119: 0.1714985851 | P119: FALSE
I120: 105 | J120: 3 | K120: 3 | L120: 5 | M120: 2 | N120: 3.278719262 | O120: 0.07624928517 | P120: TRUE
I121: 106 | J121: 3 | K121: 4 | L121: 0 | M121: 1 | N121: 5 | O121: 0.1 | P121: TRUE
I122: 107 | J122: 3 | K122: 4 | L122: 1 | M122: 1 | N122: 5.099019514 | O122: 0.1961161351 | P122: FALSE
I123: 108 | J123: 3 | K123: 4 | L123: 2 | M123: 1 | N123: 5.385164807 | O123: 0.09284766909 | P123: TRUE
I124: 109 | J124: 3 | K124: 4 | L124: 3 | M124: 1 | N124: 5.830951895 | O124: 0.1714985851 | P124: FALSE
I125: 110 | J125: 3 | K125: 4 | L125: 4 | M125: 1 | N125: 6.403124237 | O125: 0.07808688094 | P125: TRUE
I126: 111 | J126: 3 | K126: 4 | L126: 5 | M126: 1 | N126: 7.071067812 | O126: 0.1414213562 | P126: FALSE
I127: 112 | J127: 3 | K127: 5 | L127: 0 | M127: 1 | N127: 5.830951895 | O127: 0.1714985851 | P127: FALSE
I128: 113 | J128: 3 | K128: 5 | L128: 1 | M128: 2 | N128: 2.958039892 | O128: 0.08451542547 | P128: TRUE
I129: 114 | J129: 3 | K129: 5 | L129: 2 | M129: 1 | N129: 6.164414003 | O129: 0.1622214211 | P129: FALSE
I130: 115 | J130: 3 | K130: 5 | L130: 3 | M130: 2 | N130: 3.278719262 | O130: 0.07624928517 | P130: TRUE
I131: 116 | J131: 3 | K131: 5 | L131: 4 | M131: 1 | N131: 7.071067812 | O131: 0.1414213562 | P131: FALSE
I132: 117 | J132: 3 | K132: 5 | L132: 5 | M132: 2 | N132: 3.840572874 | O132: 0.06509445549 | P132: TRUE
I133: 118 | J133: 4 | K133: 0 | L133: 1 | M133: 1 | N133: 4.123105626 | O133: 0.1212678125 | P133: TRUE
I134: 119 | J134: 4 | K134: 0 | L134: 3 | M134: 1 | N134: 5 | O134: 0.1 | P134: TRUE
I135: 120 | J135: 4 | K135: 0 | L135: 5 | M135: 1 | N135: 6.403124237 | O135: 0.07808688094 | P135: TRUE
I136: 121 | J136: 4 | K136: 1 | L136: 0 | M136: 1 | N136: 4.123105626 | O136: 0.1212678125 | P136: TRUE
I137: 122 | J137: 4 | K137: 1 | L137: 1 | M137: 1 | N137: 4.242640687 | O137: 0.2357022604 | P137: FALSE
I138: 123 | J138: 4 | K138: 1 | L138: 2 | M138: 1 | N138: 4.582575695 | O138: 0.1091089451 | P138: TRUE
I139: 124 | J139: 4 | K139: 1 | L139: 3 | M139: 1 | N139: 5.099019514 | O139: 0.1961161351 | P139: FALSE
I140: 125 | J140: 4 | K140: 1 | L140: 4 | M140: 1 | N140: 5.744562647 | O140: 0.08703882798 | P140: TRUE
I141: 126 | J141: 4 | K141: 1 | L141: 5 | M141: 1 | N141: 6.480740698 | O141: 0.15430335 | P141: FALSE
I142: 127 | J142: 4 | K142: 2 | L142: 1 | M142: 1 | N142: 4.582575695 | O142: 0.1091089451 | P142: TRUE
I143: 128 | J143: 4 | K143: 2 | L143: 3 | M143: 1 | N143: 5.385164807 | O143: 0.09284766909 | P143: TRUE
I144: 129 | J144: 4 | K144: 2 | L144: 5 | M144: 1 | N144: 6.708203932 | O144: 0.07453559925 | P144: TRUE
I145: 130 | J145: 4 | K145: 3 | L145: 0 | M145: 1 | N145: =SQRT(J145^2+K145^2+L145^2)/M145 -> 5 | O145: =IF(P145,1/2/SQRT(J145^2+K145^2+L145^2),1/SQRT(J145^2+K145^2+L145^2)) -> 0.1 | P145: =ISODD(J145+K145+L145) -> TRUE
I146: 131 | J146: 4 | K146: 3 | L146: 1 | M146: 1 | N146: 5.099019514 | O146: 0.1961161351 | P146: FALSE
I147: 132 | J147: 4 | K147: 3 | L147: 2 | M147: 1 | N147: 5.385164807 | O147: 0.09284766909 | P147: TRUE
I148: 133 | J148: 4 | K148: 3 | L148: 3 | M148: 1 | N148: 5.830951895 | O148: 0.1714985851 | P148: FALSE
I149: 134 | J149: 4 | K149: 3 | L149: 4 | M149: 1 | N149: 6.403124237 | O149: 0.07808688094 | P149: TRUE
I150: 135 | J150: 4 | K150: 3 | L150: 5 | M150: 1 | N150: 7.071067812 | O150: 0.1414213562 | P150: FALSE
I151: 136 | J151: 4 | K151: 4 | L151: 1 | M151: 1 | N151: 5.744562647 | O151: 0.08703882798 | P151: TRUE
I152: 137 | J152: 4 | K152: 4 | L152: 3 | M152: 1 | N152: 6.403124237 | O152: 0.07808688094 | P152: TRUE
I153: 138 | J153: 4 | K153: 4 | L153: 5 | M153: 1 | N153: 7.549834435 | O153: 0.06622661785 | P153: TRUE
I154: 139 | J154: 4 | K154: 5 | L154: 0 | M154: 1 | N154: 6.403124237 | O154: 0.07808688094 | P154: TRUE
I155: 140 | J155: 4 | K155: 5 | L155: 1 | M155: 1 | N155: 6.480740698 | O155: 0.15430335 | P155: FALSE
I156: 141 | J156: 4 | K156: 5 | L156: 2 | M156: 1 | N156: 6.708203932 | O156: 0.07453559925 | P156: TRUE
I157: 142 | J157: 4 | K157: 5 | L157: 3 | M157: 1 | N157: 7.071067812 | O157: 0.1414213562 | P157: FALSE
I158: 143 | J158: 4 | K158: 5 | L158: 4 | M158: 1 | N158: 7.549834435 | O158: 0.06622661785 | P158: TRUE
I159: 144 | J159: 4 | K159: 5 | L159: 5 | M159: 1 | N159: 8.124038405 | O159: 0.123091491 | P159: FALSE
I160: 145 | J160: 5 | K160: 0 | L160: 1 | M160: 1 | N160: 5.099019514 | O160: 0.1961161351 | P160: FALSE
I161: 146 | J161: 5 | K161: 0 | L161: 2 | M161: 1 | N161: 5.385164807 | O161: 0.09284766909 | P161: TRUE
I162: 147 | J162: 5 | K162: 0 | L162: 3 | M162: 1 | N162: 5.830951895 | O162: 0.1714985851 | P162: FALSE
I163: 148 | J163: 5 | K163: 0 | L163: 4 | M163: 1 | N163: 6.403124237 | O163: 0.07808688094 | P163: TRUE
I164: 149 | J164: 5 | K164: 1 | L164: 0 | M164: 1 | N164: 5.099019514 | O164: 0.1961161351 | P164: FALSE
I165: 150 | J165: 5 | K165: 1 | L165: 1 | M165: 2 | N165: 2.598076211 | O165: 0.09622504486 | P165: TRUE
I166: 151 | J166: 5 | K166: 1 | L166: 2 | M166: 1 | N166: 5.477225575 | O166: 0.1825741858 | P166: FALSE
I167: 152 | J167: 5 | K167: 1 | L167: 3 | M167: 1 | N167: 5.916079783 | O167: 0.08451542547 | P167: TRUE
I168: 153 | J168: 5 | K168: 1 | L168: 4 | M168: 1 | N168: 6.480740698 | O168: 0.15430335 | P168: FALSE
I169: 154 | J169: 5 | K169: 1 | L169: 5 | M169: 2 | N169: 3.570714214 | O169: 0.0700140042 | P169: TRUE
I170: 155 | J170: 5 | K170: 2 | L170: 0 | M170: 1 | N170: 5.385164807 | O170: 0.09284766909 | P170: TRUE
I171: 156 | J171: 5 | K171: 2 | L171: 1 | M171: 1 | N171: 5.477225575 | O171: 0.1825741858 | P171: FALSE
I172: 157 | J172: 5 | K172: 2 | L172: 2 | M172: 1 | N172: 5.744562647 | O172: 0.08703882798 | P172: TRUE
I173: 158 | J173: 5 | K173: 2 | L173: 3 | M173: 1 | N173: 6.164414003 | O173: 0.1622214211 | P173: FALSE
I174: 159 | J174: 5 | K174: 2 | L174: 4 | M174: 1 | N174: 6.708203932 | O174: 0.07453559925 | P174: TRUE
I175: 160 | J175: 5 | K175: 2 | L175: 5 | M175: 1 | N175: 7.348469228 | O175: 0.1360827635 | P175: FALSE
I176: 161 | J176: 5 | K176: 3 | L176: 0 | M176: 1 | N176: 5.830951895 | O176: 0.1714985851 | P176: FALSE
I177: 162 | J177: 5 | K177: 3 | L177: 1 | M177: 2 | N177: 2.958039892 | O177: 0.08451542547 | P177: TRUE
I178: 163 | J178: 5 | K178: 3 | L178: 2 | M178: 1 | N178: 6.164414003 | O178: 0.1622214211 | P178: FALSE
I179: 164 | J179: 5 | K179: 3 | L179: 3 | M179: 2 | N179: 3.278719262 | O179: 0.07624928517 | P179: TRUE
I180: 165 | J180: 5 | K180: 3 | L180: 4 | M180: 1 | N180: 7.071067812 | O180: 0.1414213562 | P180: FALSE
I181: 166 | J181: 5 | K181: 3 | L181: 5 | M181: 2 | N181: 3.840572874 | O181: 0.06509445549 | P181: TRUE
I182: 167 | J182: 5 | K182: 4 | L182: 0 | M182: 1 | N182: 6.403124237 | O182: 0.07808688094 | P182: TRUE
I183: 168 | J183: 5 | K183: 4 | L183: 1 | M183: 1 | N183: 6.480740698 | O183: 0.15430335 | P183: FALSE
I184: 169 | J184: 5 | K184: 4 | L184: 2 | M184: 1 | N184: 6.708203932 | O184: 0.07453559925 | P184: TRUE
I185: 170 | J185: 5 | K185: 4 | L185: 3 | M185: 1 | N185: 7.071067812 | O185: 0.1414213562 | P185: FALSE
I186: 171 | J186: 5 | K186: 4 | L186: 4 | M186: 1 | N186: 7.549834435 | O186: 0.06622661785 | P186: TRUE
I187: 172 | J187: 5 | K187: 4 | L187: 5 | M187: 1 | N187: 8.124038405 | O187: 0.123091491 | P187: FALSE
I188: 173 | J188: 5 | K188: 5 | L188: 1 | M188: 2 | N188: 3.570714214 | O188: 0.0700140042 | P188: TRUE
I189: 174 | J189: 5 | K189: 5 | L189: 2 | M189: 1 | N189: 7.348469228 | O189: 0.1360827635 | P189: FALSE
I190: 175 | J190: 5 | K190: 5 | L190: 3 | M190: 2 | N190: =SQRT(J190^2+K190^2+L190^2)/M190 -> 3.840572874 | O190: 0.06509445549 | P190: TRUE
I191: 176 | J191: 5 | K191: 5 | L191: 4 | M191: 1 | N191: =SQRT(J191^2+K191^2+L191^2)/M191 -> 8.124038405 | O191: 0.123091491 | P191: FALSE

Sheet fcc atoms
A1: fcc
M14: atoms in | N14: axis factor | O14: plane factor
J15: h | K15: k | L15: l | M15: row | P15: all odd?
I16: 1 | J16: 0 | K16: 0 | L16: 0 | M16: 0 | O16: all odd=1/sqrtsum squares, else 1/2sumsquares
I17: 2 | J17: 0 | K17: 0 | L17: 1 | M17: 1 | N17: =SQRT(J17^2+K17^2+L17^2)/M17 -> 1 | O17: =IF(P17,1/SQRT(J17^2+K17^2+L17^2),1/2/SQRT(J17^2+K17^2+L17^2)) -> 0.5 | P17: =ISODD(J17*K17*L17) -> FALSE
I18: 3 | J18: 0 | K18: 1 | L18: 0 | M18: 1 | N18: 1 | O18: =IF(P18,1/SQRT(J18^2+K18^2+L18^2),1/2/SQRT(J18^2+K18^2+L18^2)) -> 0.5 | P18: =ISODD(J18*K18*L18) -> FALSE
I19: 4 | J19: 0 | K19: 1 | L19: 1 | M19: 2 | N19: =SQRT(J19^2+K19^2+L19^2)/M19 -> 0.7071067812 | O19: =IF(P19,1/SQRT(J19^2+K19^2+L19^2),1/2/SQRT(J19^2+K19^2+L19^2)) -> 0.3535533906 | P19: FALSE
I20: 5 | J20: 0 | K20: 1 | L20: 2 | M20: 1 | N20: =SQRT(J20^2+K20^2+L20^2)/M20 -> 2.236067977 | O20: =IF(P20,1/SQRT(J20^2+K20^2+L20^2),1/2/SQRT(J20^2+K20^2+L20^2)) -> 0.2236067977 | P20: FALSE
I21: 6 | J21: 0 | K21: 1 | L21: 3 | M21: 2 | N21: 1.58113883 | O21: 0.158113883 | P21: FALSE
I22: 7 | J22: 0 | K22: 1 | L22: 4 | M22: 1 | N22: 4.123105626 | O22: 0.1212678125 | P22: FALSE
I23: 8 | J23: 0 | K23: 1 | L23: 5 | M23: 2 | N23: 2.549509757 | O23: 0.09805806757 | P23: FALSE
I24: 9 | J24: 0 | K24: 2 | L24: 1 | M24: 1 | N24: 2.236067977 | O24: 0.2236067977 | P24: FALSE
I25: 10 | J25: 0 | K25: 2 | L25: 3 | M25: 1 | N25: 3.605551275 | O25: 0.1386750491 | P25: FALSE
I26: 11 | J26: 0 | K26: 2 | L26: 5 | M26: 1 | N26: 5.385164807 | O26: 0.09284766909 | P26: FALSE
I27: 12 | J27: 0 | K27: 3 | L27: 1 | M27: 2 | N27: 1.58113883 | O27: 0.158113883 | P27: FALSE
I28: 13 | J28: 0 | K28: 3 | L28: 2 | M28: 1 | N28: 3.605551275 | O28: 0.1386750491 | P28: FALSE
I29: 14 | J29: 0 | K29: 3 | L29: 4 | M29: 1 | N29: 5 | O29: 0.1 | P29: FALSE
I30: 15 | J30: 0 | K30: 3 | L30: 5 | M30: 2 | N30: 2.915475947 | O30: 0.08574929257 | P30: FALSE
I31: 16 | J31: 0 | K31: 4 | L31: 1 | M31: 1 | N31: 4.123105626 | O31: 0.1212678125 | P31: FALSE
I32: 17 | J32: 0 | K32: 4 | L32: 3 | M32: 1 | N32: 5 | O32: 0.1 | P32: FALSE
I33: 18 | J33: 0 | K33: 4 | L33: 5 | M33: 1 | N33: 6.403124237 | O33: 0.07808688094 | P33: FALSE
I34: 19 | J34: 0 | K34: 5 | L34: 1 | M34: 2 | N34: 2.549509757 | O34: 0.09805806757 | P34: FALSE
I35: 20 | J35: 0 | K35: 5 | L35: 2 | M35: 1 | N35: 5.385164807 | O35: 0.09284766909 | P35: FALSE
I36: 21 | J36: 0 | K36: 5 | L36: 3 | M36: 2 | N36: 2.915475947 | O36: 0.08574929257 | P36: FALSE
I37: 22 | J37: 0 | K37: 5 | L37: 4 | M37: 1 | N37: 6.403124237 | O37: 0.07808688094 | P37: FALSE
I38: 23 | J38: 1 | K38: 0 | L38: 0 | M38: 1 | N38: 1 | O38: 0.5 | P38: FALSE
I39: 24 | J39: 1 | K39: 0 | L39: 1 | M39: 2 | N39: 0.7071067812 | O39: =IF(P39,1/SQRT(J39^2+K39^2+L39^2),1/2/SQRT(J39^2+K39^2+L39^2)) -> 0.3535533906 | P39: FALSE
I40: 25 | J40: 1 | K40: 0 | L40: 2 | M40: 1 | N40: 2.236067977 | O40: 0.2236067977 | P40: FALSE
I41: 26 | J41: 1 | K41: 0 | L41: 3 | M41: 2 | N41: 1.58113883 | O41: 0.158113883 | P41: FALSE
I42: 27 | J42: 1 | K42: 0 | L42: 4 | M42: 1 | N42: 4.123105626 | O42: 0.1212678125 | P42: FALSE
I43: 28 | J43: 1 | K43: 0 | L43: 5 | M43: 2 | N43: 2.549509757 | O43: 0.09805806757 | P43: FALSE
I44: 29 | J44: 1 | K44: 1 | L44: 0 | M44: 2 | N44: 0.7071067812 | O44: 0.3535533906 | P44: FALSE
I45: 30 | J45: 1 | K45: 1 | L45: 1 | M45: 1 | N45: =SQRT(J45^2+K45^2+L45^2)/M45 -> 1.732050808 | O45: 0.5773502692 | P45: TRUE
I46: 31 | J46: 1 | K46: 1 | L46: 2 | M46: 2 | N46: 1.224744871 | O46: 0.2041241452 | P46: FALSE
I47: 32 | J47: 1 | K47: 1 | L47: 3 | M47: 1 | N47: 3.31662479 | O47: 0.3015113446 | P47: TRUE
I48: 33 | J48: 1 | K48: 1 | L48: 4 | M48: 2 | N48: 2.121320344 | O48: 0.1178511302 | P48: FALSE
I49: 34 | J49: 1 | K49: 1 | L49: 5 | M49: 1 | N49: 5.196152423 | O49: 0.1924500897 | P49: TRUE
I50: 35 | J50: 1 | K50: 2 | L50: 0 | M50: 1 | N50: 2.236067977 | O50: 0.2236067977 | P50: FALSE
I51: 36 | J51: 1 | K51: 2 | L51: 1 | M51: 2 | N51: 1.224744871 | O51: 0.2041241452 | P51: FALSE
I52: 37 | J52: 1 | K52: 2 | L52: 2 | M52: 1 | N52: 3 | O52: 0.1666666667 | P52: FALSE
I53: 38 | J53: 1 | K53: 2 | L53: 3 | M53: 2 | N53: 1.870828693 | O53: 0.133630621 | P53: FALSE
I54: 39 | J54: 1 | K54: 2 | L54: 4 | M54: 1 | N54: 4.582575695 | O54: 0.1091089451 | P54: FALSE
I55: 40 | J55: 1 | K55: 2 | L55: 5 | M55: 2 | N55: 2.738612788 | O55: 0.09128709292 | P55: FALSE
I56: 41 | J56: 1 | K56: 3 | L56: 0 | M56: 2 | N56: 1.58113883 | O56: 0.158113883 | P56: FALSE
I57: 42 | J57: 1 | K57: 3 | L57: 1 | M57: 1 | N57: 3.31662479 | O57: 0.3015113446 | P57: TRUE
I58: 43 | J58: 1 | K58: 3 | L58: 2 | M58: 2 | N58: 1.870828693 | O58: 0.133630621 | P58: FALSE
I59: 44 | J59: 1 | K59: 3 | L59: 3 | M59: 1 | N59: 4.358898944 | O59: 0.2294157339 | P59: TRUE
I60: 45 | J60: 1 | K60: 3 | L60: 4 | M60: 2 | N60: 2.549509757 | O60: 0.09805806757 | P60: FALSE
I61: 46 | J61: 1 | K61: 3 | L61: 5 | M61: 1 | N61: 5.916079783 | O61: 0.1690308509 | P61: TRUE
I62: 47 | J62: 1 | K62: 4 | L62: 0 | M62: 1 | N62: 4.123105626 | O62: 0.1212678125 | P62: FALSE
I63: 48 | J63: 1 | K63: 4 | L63: 1 | M63: 2 | N63: 2.121320344 | O63: 0.1178511302 | P63: FALSE
I64: 49 | J64: 1 | K64: 4 | L64: 2 | M64: 1 | N64: 4.582575695 | O64: 0.1091089451 | P64: FALSE
I65: 50 | J65: 1 | K65: 4 | L65: 3 | M65: 2 | N65: 2.549509757 | O65: 0.09805806757 | P65: FALSE
I66: 51 | J66: 1 | K66: 4 | L66: 4 | M66: 1 | N66: 5.744562647 | O66: 0.08703882798 | P66: FALSE
I67: 52 | J67: 1 | K67: 4 | L67: 5 | M67: 2 | N67: 3.240370349 | O67: 0.07715167498 | P67: FALSE
I68: 53 | J68: 1 | K68: 5 | L68: 0 | M68: 2 | N68: 2.549509757 | O68: 0.09805806757 | P68: FALSE
I69: 54 | J69: 1 | K69: 5 | L69: 1 | M69: 1 | N69: 5.196152423 | O69: 0.1924500897 | P69: TRUE
I70: 55 | J70: 1 | K70: 5 | L70: 2 | M70: 2 | N70: 2.738612788 | O70: 0.09128709292 | P70: FALSE
I71: 56 | J71: 1 | K71: 5 | L71: 3 | M71: 1 | N71: 5.916079783 | O71: 0.1690308509 | P71: TRUE
I72: 57 | J72: 1 | K72: 5 | L72: 4 | M72: 2 | N72: 3.240370349 | O72: 0.07715167498 | P72: FALSE
I73: 58 | J73: 1 | K73: 5 | L73: 5 | M73: 1 | N73: 7.141428429 | O73: 0.1400280084 | P73: TRUE
I74: 59 | J74: 2 | K74: 0 | L74: 1 | M74: 1 | N74: 2.236067977 | O74: 0.2236067977 | P74: FALSE
I75: 60 | J75: 2 | K75: 0 | L75: 3 | M75: 1 | N75: 3.605551275 | O75: 0.1386750491 | P75: FALSE
I76: 61 | J76: 2 | K76: 0 | L76: 5 | M76: 1 | N76: 5.385164807 | O76: 0.09284766909 | P76: FALSE
I77: 62 | J77: 2 | K77: 1 | L77: 0 | M77: 1 | N77: 2.236067977 | O77: 0.2236067977 | P77: FALSE
I78: 63 | J78: 2 | K78: 1 | L78: 1 | M78: 2 | N78: 1.224744871 | O78: 0.2041241452 | P78: FALSE
I79: 64 | J79: 2 | K79: 1 | L79: 2 | M79: 1 | N79: 3 | O79: 0.1666666667 | P79: FALSE
I80: 65 | J80: 2 | K80: 1 | L80: 3 | M80: 2 | N80: 1.870828693 | O80: 0.133630621 | P80: FALSE
I81: 66 | J81: 2 | K81: 1 | L81: 4 | M81: 1 | N81: =SQRT(J81^2+K81^2+L81^2)/M81 -> 4.582575695 | O81: 0.1091089451 | P81: FALSE
I82: 67 | J82: 2 | K82: 1 | L82: 5 | M82: 2 | N82: 2.738612788 | O82: =IF(P82,1/SQRT(J82^2+K82^2+L82^2),1/2/SQRT(J82^2+K82^2+L82^2)) -> 0.09128709292 | P82: =ISODD(J82*K82*L82) -> FALSE
I83: 68 | J83: 2 | K83: 2 | L83: 1 | M83: 1 | N83: 3 | O83: 0.1666666667 | P83: FALSE
I84: 69 | J84: 2 | K84: 2 | L84: 3 | M84: 1 | N84: 4.123105626 | O84: 0.1212678125 | P84: FALSE
I85: 70 | J85: 2 | K85: 2 | L85: 5 | M85: 1 | N85: 5.744562647 | O85: 0.08703882798 | P85: FALSE
I86: 71 | J86: 2 | K86: 3 | L86: 0 | M86: 1 | N86: 3.605551275 | O86: 0.1386750491 | P86: FALSE
I87: 72 | J87: 2 | K87: 3 | L87: 1 | M87: 2 | N87: 1.870828693 | O87: 0.133630621 | P87: FALSE
I88: 73 | J88: 2 | K88: 3 | L88: 2 | M88: 1 | N88: 4.123105626 | O88: 0.1212678125 | P88: FALSE
I89: 74 | J89: 2 | K89: 3 | L89: 3 | M89: 2 | N89: 2.34520788 | O89: 0.1066003582 | P89: FALSE
I90: 75 | J90: 2 | K90: 3 | L90: 4 | M90: 1 | N90: 5.385164807 | O90: 0.09284766909 | P90: FALSE
I91: 76 | J91: 2 | K91: 3 | L91: 5 | M91: 2 | N91: 3.082207001 | O91: 0.08111071057 | P91: FALSE
I92: 77 | J92: 2 | K92: 4 | L92: 1 | M92: 1 | N92: 4.582575695 | O92: 0.1091089451 | P92: FALSE
I93: 78 | J93: 2 | K93: 4 | L93: 3 | M93: 1 | N93: 5.385164807 | O93: 0.09284766909 | P93: FALSE
I94: 79 | J94: 2 | K94: 4 | L94: 5 | M94: 1 | N94: 6.708203932 | O94: 0.07453559925 | P94: FALSE
I95: 80 | J95: 2 | K95: 5 | L95: 0 | M95: 1 | N95: 5.385164807 | O95: 0.09284766909 | P95: FALSE
I96: 81 | J96: 2 | K96: 5 | L96: 1 | M96: 2 | N96: 2.738612788 | O96: 0.09128709292 | P96: FALSE
I97: 82 | J97: 2 | K97: 5 | L97: 2 | M97: 1 | N97: 5.744562647 | O97: 0.08703882798 | P97: FALSE
I98: 83 | J98: 2 | K98: 5 | L98: 3 | M98: 2 | N98: 3.082207001 | O98: 0.08111071057 | P98: FALSE
I99: 84 | J99: 2 | K99: 5 | L99: 4 | M99: 1 | N99: 6.708203932 | O99: 0.07453559925 | P99: FALSE
I100: 85 | J100: 2 | K100: 5 | L100: 5 | M100: 2 | N100: 3.674234614 | O100: 0.06804138174 | P100: FALSE
I101: 86 | J101: 3 | K101: 0 | L101: 1 | M101: 2 | N101: 1.58113883 | O101: 0.158113883 | P101: FALSE
I102: 87 | J102: 3 | K102: 0 | L102: 2 | M102: 1 | N102: 3.605551275 | O102: 0.1386750491 | P102: FALSE
I103: 88 | J103: 3 | K103: 0 | L103: 4 | M103: 1 | N103: 5 | O103: 0.1 | P103: FALSE
I104: 89 | J104: 3 | K104: 0 | L104: 5 | M104: 2 | N104: 2.915475947 | O104: 0.08574929257 | P104: FALSE
I105: 90 | J105: 3 | K105: 1 | L105: 0 | M105: 2 | N105: 1.58113883 | O105: 0.158113883 | P105: FALSE
I106: 91 | J106: 3 | K106: 1 | L106: 1 | M106: 1 | N106: 3.31662479 | O106: 0.3015113446 | P106: TRUE
I107: 92 | J107: 3 | K107: 1 | L107: 2 | M107: 2 | N107: 1.870828693 | O107: 0.133630621 | P107: FALSE
I108: 93 | J108: 3 | K108: 1 | L108: 3 | M108: 1 | N108: 4.358898944 | O108: 0.2294157339 | P108: TRUE
I109: 94 | J109: 3 | K109: 1 | L109: 4 | M109: 2 | N109: 2.549509757 | O109: 0.09805806757 | P109: FALSE
I110: 95 | J110: 3 | K110: 1 | L110: 5 | M110: 1 | N110: 5.916079783 | O110: 0.1690308509 | P110: TRUE
I111: 96 | J111: 3 | K111: 2 | L111: 0 | M111: 1 | N111: 3.605551275 | O111: 0.1386750491 | P111: FALSE
I112: 97 | J112: 3 | K112: 2 | L112: 1 | M112: 2 | N112: 1.870828693 | O112: 0.133630621 | P112: FALSE
I113: 98 | J113: 3 | K113: 2 | L113: 2 | M113: 1 | N113: 4.123105626 | O113: 0.1212678125 | P113: FALSE
I114: 99 | J114: 3 | K114: 2 | L114: 3 | M114: 2 | N114: 2.34520788 | O114: 0.1066003582 | P114: FALSE
I115: 100 | J115: 3 | K115: 2 | L115: 4 | M115: 1 | N115: 5.385164807 | O115: 0.09284766909 | P115: FALSE
I116: 101 | J116: 3 | K116: 2 | L116: 5 | M116: 2 | N116: 3.082207001 | O116: 0.08111071057 | P116: FALSE
I117: 102 | J117: 3 | K117: 3 | L117: 1 | M117: 1 | N117: 4.358898944 | O117: 0.2294157339 | P117: TRUE
I118: 103 | J118: 3 | K118: 3 | L118: 2 | M118: 2 | N118: 2.34520788 | O118: 0.1066003582 | P118: FALSE
I119: 104 | J119: 3 | K119: 3 | L119: 4 | M119: 2 | N119: 2.915475947 | O119: 0.08574929257 | P119: FALSE
I120: 105 | J120: 3 | K120: 3 | L120: 5 | M120: 1 | N120: 6.557438524 | O120: 0.1524985703 | P120: TRUE
I121: 106 | J121: 3 | K121: 4 | L121: 0 | M121: 1 | N121: 5 | O121: 0.1 | P121: FALSE
I122: 107 | J122: 3 | K122: 4 | L122: 1 | M122: 2 | N122: 2.549509757 | O122: 0.09805806757 | P122: FALSE
I123: 108 | J123: 3 | K123: 4 | L123: 2 | M123: 1 | N123: 5.385164807 | O123: 0.09284766909 | P123: FALSE
I124: 109 | J124: 3 | K124: 4 | L124: 3 | M124: 2 | N124: 2.915475947 | O124: 0.08574929257 | P124: FALSE
I125: 110 | J125: 3 | K125: 4 | L125: 4 | M125: 1 | N125: 6.403124237 | O125: 0.07808688094 | P125: FALSE
I126: 111 | J126: 3 | K126: 4 | L126: 5 | M126: 2 | N126: 3.535533906 | O126: 0.07071067812 | P126: FALSE
I127: 112 | J127: 3 | K127: 5 | L127: 0 | M127: 2 | N127: 2.915475947 | O127: 0.08574929257 | P127: FALSE
I128: 113 | J128: 3 | K128: 5 | L128: 1 | M128: 1 | N128: 5.916079783 | O128: 0.1690308509 | P128: TRUE
I129: 114 | J129: 3 | K129: 5 | L129: 2 | M129: 2 | N129: 3.082207001 | O129: 0.08111071057 | P129: FALSE
I130: 115 | J130: 3 | K130: 5 | L130: 3 | M130: 1 | N130: 6.557438524 | O130: 0.1524985703 | P130: TRUE
I131: 116 | J131: 3 | K131: 5 | L131: 4 | M131: 2 | N131: 3.535533906 | O131: 0.07071067812 | P131: FALSE
I132: 117 | J132: 3 | K132: 5 | L132: 5 | M132: 1 | N132: 7.681145748 | O132: 0.130188911 | P132: TRUE
I133: 118 | J133: 4 | K133: 0 | L133: 1 | M133: 1 | N133: 4.123105626 | O133: 0.1212678125 | P133: FALSE
I134: 119 | J134: 4 | K134: 0 | L134: 3 | M134: 1 | N134: 5 | O134: 0.1 | P134: FALSE
I135: 120 | J135: 4 | K135: 0 | L135: 5 | M135: 1 | N135: 6.403124237 | O135: 0.07808688094 | P135: FALSE
I136: 121 | J136: 4 | K136: 1 | L136: 0 | M136: 1 | N136: 4.123105626 | O136: 0.1212678125 | P136: FALSE
I137: 122 | J137: 4 | K137: 1 | L137: 1 | M137: 2 | N137: 2.121320344 | O137: 0.1178511302 | P137: FALSE
I138: 123 | J138: 4 | K138: 1 | L138: 2 | M138: 1 | N138: 4.582575695 | O138: 0.1091089451 | P138: FALSE
I139: 124 | J139: 4 | K139: 1 | L139: 3 | M139: 2 | N139: 2.549509757 | O139: 0.09805806757 | P139: FALSE
I140: 125 | J140: 4 | K140: 1 | L140: 4 | M140: 1 | N140: 5.744562647 | O140: 0.08703882798 | P140: FALSE
I141: 126 | J141: 4 | K141: 1 | L141: 5 | M141: 2 | N141: 3.240370349 | O141: 0.07715167498 | P141: FALSE
I142: 127 | J142: 4 | K142: 2 | L142: 1 | M142: 1 | N142: 4.582575695 | O142: 0.1091089451 | P142: FALSE
I143: 128 | J143: 4 | K143: 2 | L143: 3 | M143: 1 | N143: 5.385164807 | O143: 0.09284766909 | P143: FALSE
I144: 129 | J144: 4 | K144: 2 | L144: 5 | M144: 1 | N144: 6.708203932 | O144: 0.07453559925 | P144: FALSE
I145: 130 | J145: 4 | K145: 3 | L145: 0 | M145: 1 | N145: =SQRT(J145^2+K145^2+L145^2)/M145 -> 5 | O145: 0.1 | P145: FALSE
I146: 131 | J146: 4 | K146: 3 | L146: 1 | M146: 2 | N146: 2.549509757 | O146: =IF(P146,1/SQRT(J146^2+K146^2+L146^2),1/2/SQRT(J146^2+K146^2+L146^2)) -> 0.09805806757 | P146: =ISODD(J146*K146*L146) -> FALSE
I147: 132 | J147: 4 | K147: 3 | L147: 2 | M147: 1 | N147: 5.385164807 | O147: 0.09284766909 | P147: FALSE
I148: 133 | J148: 4 | K148: 3 | L148: 3 | M148: 2 | N148: 2.915475947 | O148: 0.08574929257 | P148: FALSE
I149: 134 | J149: 4 | K149: 3 | L149: 4 | M149: 1 | N149: 6.403124237 | O149: 0.07808688094 | P149: FALSE
I150: 135 | J150: 4 | K150: 3 | L150: 5 | M150: 2 | N150: 3.535533906 | O150: 0.07071067812 | P150: FALSE
I151: 136 | J151: 4 | K151: 4 | L151: 1 | M151: 1 | N151: 5.744562647 | O151: 0.08703882798 | P151: FALSE
I152: 137 | J152: 4 | K152: 4 | L152: 3 | M152: 1 | N152: 6.403124237 | O152: 0.07808688094 | P152: FALSE
I153: 138 | J153: 4 | K153: 4 | L153: 5 | M153: 1 | N153: 7.549834435 | O153: 0.06622661785 | P153: FALSE
I154: 139 | J154: 4 | K154: 5 | L154: 0 | M154: 1 | N154: 6.403124237 | O154: 0.07808688094 | P154: FALSE
I155: 140 | J155: 4 | K155: 5 | L155: 1 | M155: 2 | N155: 3.240370349 | O155: 0.07715167498 | P155: FALSE
I156: 141 | J156: 4 | K156: 5 | L156: 2 | M156: 1 | N156: 6.708203932 | O156: 0.07453559925 | P156: FALSE
I157: 142 | J157: 4 | K157: 5 | L157: 3 | M157: 2 | N157: 3.535533906 | O157: 0.07071067812 | P157: FALSE
I158: 143 | J158: 4 | K158: 5 | L158: 4 | M158: 1 | N158: 7.549834435 | O158: 0.06622661785 | P158: FALSE
I159: 144 | J159: 4 | K159: 5 | L159: 5 | M159: 2 | N159: 4.062019202 | O159: 0.06154574549 | P159: FALSE
I160: 145 | J160: 5 | K160: 0 | L160: 1 | M160: 2 | N160: 2.549509757 | O160: 0.09805806757 | P160: FALSE
I161: 146 | J161: 5 | K161: 0 | L161: 2 | M161: 1 | N161: 5.385164807 | O161: 0.09284766909 | P161: FALSE
I162: 147 | J162: 5 | K162: 0 | L162: 3 | M162: 2 | N162: 2.915475947 | O162: 0.08574929257 | P162: FALSE
I163: 148 | J163: 5 | K163: 0 | L163: 4 | M163: 1 | N163: 6.403124237 | O163: 0.07808688094 | P163: FALSE
I164: 149 | J164: 5 | K164: 1 | L164: 0 | M164: 2 | N164: 2.549509757 | O164: 0.09805806757 | P164: FALSE
I165: 150 | J165: 5 | K165: 1 | L165: 1 | M165: 1 | N165: 5.196152423 | O165: 0.1924500897 | P165: TRUE
I166: 151 | J166: 5 | K166: 1 | L166: 2 | M166: 2 | N166: 2.738612788 | O166: 0.09128709292 | P166: FALSE
I167: 152 | J167: 5 | K167: 1 | L167: 3 | M167: 1 | N167: 5.916079783 | O167: 0.1690308509 | P167: TRUE
I168: 153 | J168: 5 | K168: 1 | L168: 4 | M168: 2 | N168: 3.240370349 | O168: 0.07715167498 | P168: FALSE
I169: 154 | J169: 5 | K169: 1 | L169: 5 | M169: 1 | N169: 7.141428429 | O169: 0.1400280084 | P169: TRUE
I170: 155 | J170: 5 | K170: 2 | L170: 0 | M170: 1 | N170: 5.385164807 | O170: 0.09284766909 | P170: FALSE
I171: 156 | J171: 5 | K171: 2 | L171: 1 | M171: 2 | N171: 2.738612788 | O171: 0.09128709292 | P171: FALSE
I172: 157 | J172: 5 | K172: 2 | L172: 2 | M172: 1 | N172: 5.744562647 | O172: 0.08703882798 | P172: FALSE
I173: 158 | J173: 5 | K173: 2 | L173: 3 | M173: 2 | N173: 3.082207001 | O173: 0.08111071057 | P173: FALSE
I174: 159 | J174: 5 | K174: 2 | L174: 4 | M174: 1 | N174: 6.708203932 | O174: 0.07453559925 | P174: FALSE
I175: 160 | J175: 5 | K175: 2 | L175: 5 | M175: 2 | N175: 3.674234614 | O175: 0.06804138174 | P175: FALSE
I176: 161 | J176: 5 | K176: 3 | L176: 0 | M176: 2 | N176: 2.915475947 | O176: 0.08574929257 | P176: FALSE
I177: 162 | J177: 5 | K177: 3 | L177: 1 | M177: 1 | N177: 5.916079783 | O177: 0.1690308509 | P177: TRUE
I178: 163 | J178: 5 | K178: 3 | L178: 2 | M178: 2 | N178: 3.082207001 | O178: 0.08111071057 | P178: FALSE
I179: 164 | J179: 5 | K179: 3 | L179: 3 | M179: 1 | N179: 6.557438524 | O179: 0.1524985703 | P179: TRUE
I180: 165 | J180: 5 | K180: 3 | L180: 4 | M180: 2 | N180: 3.535533906 | O180: 0.07071067812 | P180: FALSE
I181: 166 | J181: 5 | K181: 3 | L181: 5 | M181: 1 | N181: 7.681145748 | O181: 0.130188911 | P181: TRUE
I182: 167 | J182: 5 | K182: 4 | L182: 0 | M182: 1 | N182: 6.403124237 | O182: 0.07808688094 | P182: FALSE
I183: 168 | J183: 5 | K183: 4 | L183: 1 | M183: 2 | N183: 3.240370349 | O183: 0.07715167498 | P183: FALSE
I184: 169 | J184: 5 | K184: 4 | L184: 2 | M184: 1 | N184: 6.708203932 | O184: 0.07453559925 | P184: FALSE
I185: 170 | J185: 5 | K185: 4 | L185: 3 | M185: 2 | N185: 3.535533906 | O185: 0.07071067812 | P185: FALSE
I186: 171 | J186: 5 | K186: 4 | L186: 4 | M186: 1 | N186: 7.549834435 | O186: 0.06622661785 | P186: FALSE
I187: 172 | J187: 5 | K187: 4 | L187: 5 | M187: 2 | N187: 4.062019202 | O187: 0.06154574549 | P187: FALSE
I188: 173 | J188: 5 | K188: 5 | L188: 1 | M188: 1 | N188: 7.141428429 | O188: 0.1400280084 | P188: TRUE
I189: 174 | J189: 5 | K189: 5 | L189: 2 | M189: 2 | N189: 3.674234614 | O189: 0.06804138174 | P189: FALSE
I190: 175 | J190: 5 | K190: 5 | L190: 3 | M190: 1 | N190: 7.681145748 | O190: 0.130188911 | P190: TRUE
I191: 176 | J191: 5 | K191: 5 | L191: 4 | M191: 2 | N191: 4.062019202 | O191: 0.06154574549 | P191: FALSE

Sheet diamond atoms
A1: diamond
M14: atoms in | N14: axis factor | O14: plane factor
J15: h | K15: k | L15: l | M15: row
J16: 0 | K16: 0 | L16: 0 | M16: 0 | O16: 1/2sqrt(i2 +j2+k2) or 1/4 for 100
I17: 1 | J17: 0 | K17: 0 | L17: 1 | M17: 1 | N17: =SQRT(J17^2+K17^2+L17^2)/M17 -> 1 | O17: =IF(J17+K17+L17=1,0.25,1/2/SQRT(J17^2+K17^2+L17^2)) -> 0.25
I18: 2 | J18: 0 | K18: 1 | L18: 0 | M18: 1 | N18: 1 | O18: 0.25
I19: 3 | J19: 0 | K19: 1 | L19: 1 | M19: 2 | N19: =SQRT(J19^2+K19^2+L19^2)/M19 -> 0.7071067812 | O19: =IF(J19+K19+L19=1,0.25,1/2/SQRT(J19^2+K19^2+L19^2)) -> 0.3535533906
I20: 4 | J20: 0 | K20: 1 | L20: 2 | M20: 1 | N20: 2.236067977 | O20: =IF(J20+K20+L20=1,0.25,1/2/SQRT(J20^2+K20^2+L20^2)) -> 0.2236067977
I21: 5 | J21: 0 | K21: 1 | L21: 3 | M21: 1 | N21: =SQRT(J21^2+K21^2+L21^2)/M21 -> 3.16227766 | O21: =IF(J21+K21+L21=1,0.25,1/2/SQRT(J21^2+K21^2+L21^2)) -> 0.158113883
I22: 6 | J22: 0 | K22: 1 | L22: 4 | M22: 1 | N22: 4.123105626 | O22: 0.1212678125
I23: 7 | J23: 0 | K23: 1 | L23: 5 | M23: 2 | N23: 2.549509757 | O23: =IF(J23+K23+L23=1,0.25,1/2/SQRT(J23^2+K23^2+L23^2)) -> 0.09805806757
I24: 8 | J24: 0 | K24: 2 | L24: 1 | M24: 1 | N24: 2.236067977 | O24: 0.2236067977
I25: 9 | J25: 0 | K25: 2 | L25: 3 | M25: 1 | N25: 3.605551275 | O25: 0.1386750491
I26: 10 | J26: 0 | K26: 2 | L26: 5 | M26: 1 | N26: 5.385164807 | O26: 0.09284766909
I27: 11 | J27: 0 | K27: 3 | L27: 1 | M27: 1 | N27: 3.16227766 | O27: 0.158113883
I28: 12 | J28: 0 | K28: 3 | L28: 2 | M28: 1 | N28: 3.605551275 | O28: 0.1386750491
I29: 13 | J29: 0 | K29: 3 | L29: 4 | M29: 1 | N29: 5 | O29: 0.1
I30: 14 | J30: 0 | K30: 3 | L30: 5 | M30: 1 | N30: 5.830951895 | O30: 0.08574929257
I31: 15 | J31: 0 | K31: 4 | L31: 1 | M31: 1 | N31: 4.123105626 | O31: 0.1212678125
I32: 16 | J32: 0 | K32: 4 | L32: 3 | M32: 1 | N32: 5 | O32: 0.1
I33: 17 | J33: 0 | K33: 4 | L33: 5 | M33: 1 | N33: 6.403124237 | O33: 0.07808688094
I34: 18 | J34: 0 | K34: 5 | L34: 1 | M34: 2 | N34: 2.549509757 | O34: 0.09805806757
I35: 19 | J35: 0 | K35: 5 | L35: 2 | M35: 1 | N35: 5.385164807 | O35: 0.09284766909
I36: 20 | J36: 0 | K36: 5 | L36: 3 | M36: 1 | N36: 5.830951895 | O36: 0.08574929257
I37: 21 | J37: 0 | K37: 5 | L37: 4 | M37: 1 | N37: 6.403124237 | O37: 0.07808688094
I38: 22 | J38: 1 | K38: 0 | L38: 0 | M38: 1 | N38: 1 | O38: 0.25
I39: 23 | J39: 1 | K39: 0 | L39: 1 | M39: 2 | N39: 0.7071067812 | O39: 0.3535533906
I40: 24 | J40: 1 | K40: 0 | L40: 2 | M40: 1 | N40: 2.236067977 | O40: 0.2236067977
I41: 25 | J41: 1 | K41: 0 | L41: 3 | M41: 1 | N41: 3.16227766 | O41: =IF(J41+K41+L41=1,0.25,1/2/SQRT(J41^2+K41^2+L41^2)) -> 0.158113883
I42: 26 | J42: 1 | K42: 0 | L42: 4 | M42: 1 | N42: =SQRT(J42^2+K42^2+L42^2)/M42 -> 4.123105626 | O42: 0.1212678125
I43: 27 | J43: 1 | K43: 0 | L43: 5 | M43: 2 | N43: 2.549509757 | O43: 0.09805806757
I44: 28 | J44: 1 | K44: 1 | L44: 0 | M44: 2 | N44: 0.7071067812 | O44: 0.3535533906
I45: 29 | J45: 1 | K45: 1 | L45: 1 | M45: 2 | N45: 0.8660254038 | O45: 0.2886751346
I46: 30 | J46: 1 | K46: 1 | L46: 2 | M46: 1 | N46: 2.449489743 | O46: 0.2041241452
I47: 31 | J47: 1 | K47: 1 | L47: 3 | M47: 2 | N47: 1.658312395 | O47: 0.1507556723
I48: 32 | J48: 1 | K48: 1 | L48: 4 | M48: 2 | N48: 2.121320344 | O48: 0.1178511302
I49: 33 | J49: 1 | K49: 1 | L49: 5 | M49: 2 | N49: 2.598076211 | O49: 0.09622504486
I50: 34 | J50: 1 | K50: 2 | L50: 0 | M50: 1 | N50: 2.236067977 | O50: 0.2236067977
I51: 35 | J51: 1 | K51: 2 | L51: 1 | M51: 1 | N51: 2.449489743 | O51: 0.2041241452
I52: 36 | J52: 1 | K52: 2 | L52: 2 | M52: 1 | N52: 3 | O52: 0.1666666667
I53: 37 | J53: 1 | K53: 2 | L53: 3 | M53: 1 | N53: 3.741657387 | O53: 0.133630621
I54: 38 | J54: 1 | K54: 2 | L54: 4 | M54: 1 | N54: 4.582575695 | O54: 0.1091089451
I55: 39 | J55: 1 | K55: 2 | L55: 5 | M55: 1 | N55: 5.477225575 | O55: 0.09128709292
I56: 40 | J56: 1 | K56: 3 | L56: 0 | M56: 1 | N56: 3.16227766 | O56: 0.158113883
I57: 41 | J57: 1 | K57: 3 | L57: 1 | M57: 2 | N57: 1.658312395 | O57: 0.1507556723
I58: 42 | J58: 1 | K58: 3 | L58: 2 | M58: 1 | N58: 3.741657387 | O58: 0.133630621
I59: 43 | J59: 1 | K59: 3 | L59: 3 | M59: 2 | N59: 2.179449472 | O59: 0.1147078669
I60: 44 | J60: 1 | K60: 3 | L60: 4 | M60: 1 | N60: 5.099019514 | O60: 0.09805806757
I61: 45 | J61: 1 | K61: 3 | L61: 5 | M61: 2 | N61: 2.958039892 | O61: 0.08451542547
I62: 46 | J62: 1 | K62: 4 | L62: 0 | M62: 1 | N62: 4.123105626 | O62: 0.1212678125
I63: 47 | J63: 1 | K63: 4 | L63: 1 | M63: 2 | N63: 2.121320344 | O63: 0.1178511302
I64: 48 | J64: 1 | K64: 4 | L64: 2 | M64: 1 | N64: 4.582575695 | O64: 0.1091089451
I65: 49 | J65: 1 | K65: 4 | L65: 3 | M65: 1 | N65: 5.099019514 | O65: 0.09805806757
I66: 50 | J66: 1 | K66: 4 | L66: 4 | M66: 1 | N66: 5.744562647 | O66: 0.08703882798
I67: 51 | J67: 1 | K67: 4 | L67: 5 | M67: 2 | N67: 3.240370349 | O67: 0.07715167498
I68: 52 | J68: 1 | K68: 5 | L68: 0 | M68: 2 | N68: 2.549509757 | O68: 0.09805806757
I69: 53 | J69: 1 | K69: 5 | L69: 1 | M69: 2 | N69: 2.598076211 | O69: 0.09622504486
I70: 54 | J70: 1 | K70: 5 | L70: 2 | M70: 1 | N70: 5.477225575 | O70: 0.09128709292
I71: 55 | J71: 1 | K71: 5 | L71: 3 | M71: 2 | N71: 2.958039892 | O71: 0.08451542547
I72: 56 | J72: 1 | K72: 5 | L72: 4 | M72: 2 | N72: 3.240370349 | O72: 0.07715167498
I73: 57 | J73: 1 | K73: 5 | L73: 5 | M73: 2 | N73: 3.570714214 | O73: 0.0700140042
I74: 58 | J74: 2 | K74: 0 | L74: 1 | M74: 1 | N74: 2.236067977 | O74: 0.2236067977
I75: 59 | J75: 2 | K75: 0 | L75: 3 | M75: 1 | N75: 3.605551275 | O75: 0.1386750491
I76: 60 | J76: 2 | K76: 0 | L76: 5 | M76: 1 | N76: 5.385164807 | O76: 0.09284766909
I77: 61 | J77: 2 | K77: 1 | L77: 0 | M77: 1 | N77: 2.236067977 | O77: 0.2236067977
I78: 62 | J78: 2 | K78: 1 | L78: 1 | M78: 1 | N78: 2.449489743 | O78: 0.2041241452
I79: 63 | J79: 2 | K79: 1 | L79: 2 | M79: 1 | N79: 3 | O79: 0.1666666667
I80: 64 | J80: 2 | K80: 1 | L80: 3 | M80: 1 | N80: 3.741657387 | O80: 0.133630621
I81: 65 | J81: 2 | K81: 1 | L81: 4 | M81: 1 | N81: =SQRT(J81^2+K81^2+L81^2)/M81 -> 4.582575695 | O81: 0.1091089451
I82: 66 | J82: 2 | K82: 1 | L82: 5 | M82: 1 | N82: 5.477225575 | O82: 0.09128709292
I83: 67 | J83: 2 | K83: 2 | L83: 1 | M83: 1 | N83: 3 | O83: 0.1666666667
I84: 68 | J84: 2 | K84: 2 | L84: 3 | M84: 1 | N84: 4.123105626 | O84: =IF(J84+K84+L84=1,0.25,1/2/SQRT(J84^2+K84^2+L84^2)) -> 0.1212678125
I85: 69 | J85: 2 | K85: 2 | L85: 5 | M85: 1 | N85: 5.744562647 | O85: 0.08703882798
I86: 70 | J86: 2 | K86: 3 | L86: 0 | M86: 1 | N86: 3.605551275 | O86: 0.1386750491
I87: 71 | J87: 2 | K87: 3 | L87: 1 | M87: 1 | N87: 3.741657387 | O87: 0.133630621
I88: 72 | J88: 2 | K88: 3 | L88: 2 | M88: 1 | N88: 4.123105626 | O88: 0.1212678125
I89: 73 | J89: 2 | K89: 3 | L89: 3 | M89: 1 | N89: 4.69041576 | O89: 0.1066003582
I90: 74 | J90: 2 | K90: 3 | L90: 4 | M90: 1 | N90: 5.385164807 | O90: 0.09284766909
I91: 75 | J91: 2 | K91: 3 | L91: 5 | M91: 1 | N91: 6.164414003 | O91: 0.08111071057
I92: 76 | J92: 2 | K92: 4 | L92: 1 | M92: 1 | N92: 4.582575695 | O92: 0.1091089451
I93: 77 | J93: 2 | K93: 4 | L93: 3 | M93: 1 | N93: 5.385164807 | O93: 0.09284766909
I94: 78 | J94: 2 | K94: 4 | L94: 5 | M94: 1 | N94: 6.708203932 | O94: 0.07453559925
I95: 79 | J95: 2 | K95: 5 | L95: 0 | M95: 1 | N95: 5.385164807 | O95: 0.09284766909
I96: 80 | J96: 2 | K96: 5 | L96: 1 | M96: 1 | N96: 5.477225575 | O96: 0.09128709292
I97: 81 | J97: 2 | K97: 5 | L97: 2 | M97: 1 | N97: 5.744562647 | O97: 0.08703882798
I98: 82 | J98: 2 | K98: 5 | L98: 3 | M98: 1 | N98: 6.164414003 | O98: 0.08111071057
I99: 83 | J99: 2 | K99: 5 | L99: 4 | M99: 1 | N99: 6.708203932 | O99: 0.07453559925
I100: 84 | J100: 2 | K100: 5 | L100: 5 | M100: 1 | N100: 7.348469228 | O100: 0.06804138174
I101: 85 | J101: 3 | K101: 0 | L101: 1 | M101: 1 | N101: 3.16227766 | O101: 0.158113883
I102: 86 | J102: 3 | K102: 0 | L102: 2 | M102: 1 | N102: 3.605551275 | O102: 0.1386750491
I103: 87 | J103: 3 | K103: 0 | L103: 4 | M103: 1 | N103: 5 | O103: 0.1
I104: 88 | J104: 3 | K104: 0 | L104: 5 | M104: 1 | N104: 5.830951895 | O104: 0.08574929257
I105: 89 | J105: 3 | K105: 1 | L105: 0 | M105: 1 | N105: 3.16227766 | O105: 0.158113883
I106: 90 | J106: 3 | K106: 1 | L106: 1 | M106: 2 | N106: 1.658312395 | O106: 0.1507556723
I107: 91 | J107: 3 | K107: 1 | L107: 2 | M107: 1 | N107: 3.741657387 | O107: 0.133630621
I108: 92 | J108: 3 | K108: 1 | L108: 3 | M108: 2 | N108: 2.179449472 | O108: 0.1147078669
I109: 93 | J109: 3 | K109: 1 | L109: 4 | M109: 1 | N109: 5.099019514 | O109: 0.09805806757
I110: 94 | J110: 3 | K110: 1 | L110: 5 | M110: 2 | N110: 2.958039892 | O110: 0.08451542547
I111: 95 | J111: 3 | K111: 2 | L111: 0 | M111: 1 | N111: 3.605551275 | O111: 0.1386750491
I112: 96 | J112: 3 | K112: 2 | L112: 1 | M112: 1 | N112: 3.741657387 | O112: 0.133630621
I113: 97 | J113: 3 | K113: 2 | L113: 2 | M113: 1 | N113: 4.123105626 | O113: 0.1212678125
I114: 98 | J114: 3 | K114: 2 | L114: 3 | M114: 1 | N114: 4.69041576 | O114: 0.1066003582
I115: 99 | J115: 3 | K115: 2 | L115: 4 | M115: 1 | N115: 5.385164807 | O115: 0.09284766909
I116: 100 | J116: 3 | K116: 2 | L116: 5 | M116: 1 | N116: 6.164414003 | O116: 0.08111071057
I117: 101 | J117: 3 | K117: 3 | L117: 1 | M117: 2 | N117: 2.179449472 | O117: 0.1147078669
I118: 102 | J118: 3 | K118: 3 | L118: 2 | M118: 1 | N118: 4.69041576 | O118: 0.1066003582
I119: 103 | J119: 3 | K119: 3 | L119: 4 | M119: 2 | N119: 2.915475947 | O119: 0.08574929257
I120: 104 | J120: 3 | K120: 3 | L120: 5 | M120: 2 | N120: 3.278719262 | O120: 0.07624928517
I121: 105 | J121: 3 | K121: 4 | L121: 0 | M121: 1 | N121: 5 | O121: 0.1
I122: 106 | J122: 3 | K122: 4 | L122: 1 | M122: 1 | N122: 5.099019514 | O122: 0.09805806757
I123: 107 | J123: 3 | K123: 4 | L123: 2 | M123: 1 | N123: 5.385164807 | O123: 0.09284766909
I124: 108 | J124: 3 | K124: 4 | L124: 3 | M124: 2 | N124: 2.915475947 | O124: 0.08574929257
I125: 109 | J125: 3 | K125: 4 | L125: 4 | M125: 1 | N125: 6.403124237 | O125: 0.07808688094
I126: 110 | J126: 3 | K126: 4 | L126: 5 | M126: 1 | N126: 7.071067812 | O126: 0.07071067812
I127: 111 | J127: 3 | K127: 5 | L127: 0 | M127: 1 | N127: 5.830951895 | O127: 0.08574929257
I128: 112 | J128: 3 | K128: 5 | L128: 1 | M128: 2 | N128: 2.958039892 | O128: 0.08451542547
I129: 113 | J129: 3 | K129: 5 | L129: 2 | M129: 1 | N129: 6.164414003 | O129: 0.08111071057
I130: 114 | J130: 3 | K130: 5 | L130: 3 | M130: 2 | N130: 3.278719262 | O130: 0.07624928517
I131: 115 | J131: 3 | K131: 5 | L131: 4 | M131: 1 | N131: 7.071067812 | O131: 0.07071067812
I132: 116 | J132: 3 | K132: 5 | L132: 5 | M132: 2 | N132: 3.840572874 | O132: 0.06509445549
I133: 117 | J133: 4 | K133: 0 | L133: 1 | M133: 1 | N133: 4.123105626 | O133: 0.1212678125
I134: 118 | J134: 4 | K134: 0 | L134: 3 | M134: 1 | N134: 5 | O134: 0.1
I135: 119 | J135: 4 | K135: 0 | L135: 5 | M135: 1 | N135: 6.403124237 | O135: 0.07808688094
I136: 120 | J136: 4 | K136: 1 | L136: 0 | M136: 1 | N136: 4.123105626 | O136: 0.1212678125
I137: 121 | J137: 4 | K137: 1 | L137: 1 | M137: 2 | N137: 2.121320344 | O137: 0.1178511302
I138: 122 | J138: 4 | K138: 1 | L138: 2 | M138: 1 | N138: 4.582575695 | O138: 0.1091089451
I139: 123 | J139: 4 | K139: 1 | L139: 3 | M139: 1 | N139: 5.099019514 | O139: 0.09805806757
I140: 124 | J140: 4 | K140: 1 | L140: 4 | M140: 1 | N140: 5.744562647 | O140: 0.08703882798
I141: 125 | J141: 4 | K141: 1 | L141: 5 | M141: 2 | N141: 3.240370349 | O141: 0.07715167498
I142: 126 | J142: 4 | K142: 2 | L142: 1 | M142: 1 | N142: 4.582575695 | O142: 0.1091089451
I143: 127 | J143: 4 | K143: 2 | L143: 3 | M143: 1 | N143: 5.385164807 | O143: 0.09284766909
I144: 128 | J144: 4 | K144: 2 | L144: 5 | M144: 1 | N144: 6.708203932 | O144: 0.07453559925
I145: 129 | J145: 4 | K145: 3 | L145: 0 | M145: 1 | N145: =SQRT(J145^2+K145^2+L145^2)/M145 -> 5 | O145: 0.1
I146: 130 | J146: 4 | K146: 3 | L146: 1 | M146: 1 | N146: 5.099019514 | O146: 0.09805806757
I147: 131 | J147: 4 | K147: 3 | L147: 2 | M147: 1 | N147: 5.385164807 | O147: 0.09284766909
I148: 132 | J148: 4 | K148: 3 | L148: 3 | M148: 2 | N148: 2.915475947 | O148: =IF(J148+K148+L148=1,0.25,1/2/SQRT(J148^2+K148^2+L148^2)) -> 0.08574929257
I149: 133 | J149: 4 | K149: 3 | L149: 4 | M149: 1 | N149: 6.403124237 | O149: 0.07808688094
I150: 134 | J150: 4 | K150: 3 | L150: 5 | M150: 1 | N150: 7.071067812 | O150: 0.07071067812
I151: 135 | J151: 4 | K151: 4 | L151: 1 | M151: 1 | N151: 5.744562647 | O151: 0.08703882798
I152: 136 | J152: 4 | K152: 4 | L152: 3 | M152: 1 | N152: 6.403124237 | O152: 0.07808688094
I153: 137 | J153: 4 | K153: 4 | L153: 5 | M153: 1 | N153: 7.549834435 | O153: 0.06622661785
I154: 138 | J154: 4 | K154: 5 | L154: 0 | M154: 1 | N154: 6.403124237 | O154: 0.07808688094
I155: 139 | J155: 4 | K155: 5 | L155: 1 | M155: 2 | N155: 3.240370349 | O155: 0.07715167498
I156: 140 | J156: 4 | K156: 5 | L156: 2 | M156: 1 | N156: 6.708203932 | O156: 0.07453559925
I157: 141 | J157: 4 | K157: 5 | L157: 3 | M157: 1 | N157: 7.071067812 | O157: 0.07071067812
I158: 142 | J158: 4 | K158: 5 | L158: 4 | M158: 1 | N158: 7.549834435 | O158: 0.06622661785
I159: 143 | J159: 4 | K159: 5 | L159: 5 | M159: 2 | N159: 4.062019202 | O159: 0.06154574549
I160: 144 | J160: 5 | K160: 0 | L160: 1 | M160: 2 | N160: 2.549509757 | O160: 0.09805806757
I161: 145 | J161: 5 | K161: 0 | L161: 2 | M161: 1 | N161: 5.385164807 | O161: 0.09284766909
I162: 146 | J162: 5 | K162: 0 | L162: 3 | M162: 1 | N162: 5.830951895 | O162: 0.08574929257
I163: 147 | J163: 5 | K163: 0 | L163: 4 | M163: 1 | N163: 6.403124237 | O163: 0.07808688094
I164: 148 | J164: 5 | K164: 1 | L164: 0 | M164: 2 | N164: 2.549509757 | O164: 0.09805806757
I165: 149 | J165: 5 | K165: 1 | L165: 1 | M165: 2 | N165: 2.598076211 | O165: 0.09622504486
I166: 150 | J166: 5 | K166: 1 | L166: 2 | M166: 1 | N166: 5.477225575 | O166: 0.09128709292
I167: 151 | J167: 5 | K167: 1 | L167: 3 | M167: 2 | N167: 2.958039892 | O167: 0.08451542547
I168: 152 | J168: 5 | K168: 1 | L168: 4 | M168: 2 | N168: 3.240370349 | O168: 0.07715167498
I169: 153 | J169: 5 | K169: 1 | L169: 5 | M169: 2 | N169: 3.570714214 | O169: 0.0700140042
I170: 154 | J170: 5 | K170: 2 | L170: 0 | M170: 1 | N170: 5.385164807 | O170: 0.09284766909
I171: 155 | J171: 5 | K171: 2 | L171: 1 | M171: 1 | N171: 5.477225575 | O171: 0.09128709292
I172: 156 | J172: 5 | K172: 2 | L172: 2 | M172: 1 | N172: 5.744562647 | O172: 0.08703882798
I173: 157 | J173: 5 | K173: 2 | L173: 3 | M173: 1 | N173: 6.164414003 | O173: 0.08111071057
I174: 158 | J174: 5 | K174: 2 | L174: 4 | M174: 1 | N174: 6.708203932 | O174: 0.07453559925
I175: 159 | J175: 5 | K175: 2 | L175: 5 | M175: 1 | N175: 7.348469228 | O175: 0.06804138174
I176: 160 | J176: 5 | K176: 3 | L176: 0 | M176: 1 | N176: 5.830951895 | O176: 0.08574929257
I177: 161 | J177: 5 | K177: 3 | L177: 1 | M177: 2 | N177: 2.958039892 | O177: 0.08451542547
I178: 162 | J178: 5 | K178: 3 | L178: 2 | M178: 1 | N178: 6.164414003 | O178: 0.08111071057
I179: 163 | J179: 5 | K179: 3 | L179: 3 | M179: 2 | N179: 3.278719262 | O179: 0.07624928517
I180: 164 | J180: 5 | K180: 3 | L180: 4 | M180: 1 | N180: 7.071067812 | O180: 0.07071067812
I181: 165 | J181: 5 | K181: 3 | L181: 5 | M181: 2 | N181: 3.840572874 | O181: 0.06509445549
I182: 166 | J182: 5 | K182: 4 | L182: 0 | M182: 1 | N182: 6.403124237 | O182: 0.07808688094
I183: 167 | J183: 5 | K183: 4 | L183: 1 | M183: 2 | N183: 3.240370349 | O183: 0.07715167498
I184: 168 | J184: 5 | K184: 4 | L184: 2 | M184: 1 | N184: 6.708203932 | O184: 0.07453559925
I185: 169 | J185: 5 | K185: 4 | L185: 3 | M185: 1 | N185: 7.071067812 | O185: 0.07071067812
I186: 170 | J186: 5 | K186: 4 | L186: 4 | M186: 1 | N186: 7.549834435 | O186: 0.06622661785
I187: 171 | J187: 5 | K187: 4 | L187: 5 | M187: 2 | N187: 4.062019202 | O187: 0.06154574549
I188: 172 | J188: 5 | K188: 5 | L188: 1 | M188: 2 | N188: 3.570714214 | O188: 0.0700140042
I189: 173 | J189: 5 | K189: 5 | L189: 2 | M189: 1 | N189: 7.348469228 | O189: 0.06804138174
I190: 174 | J190: 5 | K190: 5 | L190: 3 | M190: 2 | N190: 3.840572874 | O190: 0.06509445549
I191: 175 | J191: 5 | K191: 5 | L191: 4 | M191: 2 | N191: 4.062019202 | O191: 0.06154574549

Sheet b
B1: minimum impact parameter and calculation of recoil energy transferred to target atom along row
B21: Z1 | C21: 14
B22: Z2 | C22: 14
B23: e2 | C23: =1.19995^2 -> 1.439880003 | D23: MeV fm | E23: =+C23*0.00001 -> 1.439880003e-05 | F23: MeV A
B24: dR | C24: 5.43 | D24: A
B25: a | C25: 0.138 | D25: A
B26: E | C26: 1 | D26: MeV
B28: alpha | C28: =+C21*C22*E23*C24/C25^2/C26 -> 0.8046815212
B30: r-crit | C30: =2/3*C25*SQRT(C28)*(1-SQRT(C28)/19+C28/700) -> 0.07872623565 | E30: A
B31: E
B32: Si-Si | C32: r-crit doyle
B33: =+C26 -> 1 | C33: =+C30 -> 0.07872623565
B34: 1e-05 | C34: 2636.493897
B35: =10*B34 -> 0.0001 | C35: 64.15857479
B36: =10*B35 -> 0.001 | C36: 1.713434594
B37: 0.01 | C37: 0.5305112558
B38: 0.1 | C38: 0.2250120673
B39: 1 | C39: 0.07872623565
B40: 10 | C40: 0.02571092097
B43: B-Si
C44: r-crit doyle
B45: 1 | C45: 0.048127234
B46: 1e-05 | C46: 377.1592082
B47: 0.0001 | C47: 8.107241589
B48: 0.001 | C48: 0.8342023627
B49: 0.01 | C49: 0.3876739346
B50: 0.1 | C50: 0.1443674255
B51: 1 | C51: 0.048127234
B52: 10 | C52: 0.01547597881
B55: For M1=M2
D56: recoil-lab= | E56: =90-E58 -> 87.94606883 | F56: deg
D58: th-lab= | E58: =E60/C30*180/3.14159 -> 2.053931166 | F58: deg
D60: kappa= | E60: =+E62/2/E64 -> 0.002822164805
D62: k= | E62: =+C21*C22*E23 -> 0.002822164805
D64: To'= | E64: =+C26/2 -> 0.5
D67: =+C30 -> 0.07872623565 | E67: A
D69: approx
B70: E-recoil= | C70: =+C26*(E60/D67)^2 -> 0.001285067 | D70: =9*C21*C22*E23/4/C24 -> 0.001169405306 | E70: MeV
